Workbook

Sheet A-P&G
A1: Contract: RLM/OMM/0156/2024/25
A2: Part C2: Pricing Data
A3: Section C2.2: Bill of Quantities
A4: Preliminary and General
A5: Item | B5: Payment | C5: Description | H5: Unit | I5: Qty | J5: Rate | K5: Amount
B6: Reference | J6: (R) | K6: (R)
B8: SANS | C8: BILL NO | E8: 1
B9: 1200 A | C9: PRELIMINARY AND GENERAL
A11: =IF(OR(AND(M11>0),M11>1),O11,"") ->  | B11: PSA8.1 | C11: FIXED-CHARGE ITEMS
A12: =IF(OR(AND(M12>0),M12>1),O12,"") -> 
A13: =IF(ISBLANK(H13),"",($E$8&"."&+(COUNTA(H$7:H13)))) -> 1.1 | B13: 8.3.1 | C13: Contractual Requirements | H13: sum | I13: 1
A14: =IF(ISBLANK(H14),"",($E$8&"."&+(COUNTA(H$7:H14)))) -> 
A15: =IF(ISBLANK(H15),"",($E$8&"."&+(COUNTA(H$7:H15)))) ->  | C15: Establishment of Facilities on Site
A16: =IF(ISBLANK(H16),"",($E$8&"."&+(COUNTA(H$7:H16)))) -> 
A17: =IF(ISBLANK(H17),"",($E$8&"."&+(COUNTA(H$7:H17)))) ->  | B17: 8.3.2 | C17: .1 | D17: Facilities for the Engineer
A18: =IF(ISBLANK(H18),"",($E$8&"."&+(COUNTA(H$7:H18)))) ->  | B18: PSAB | D18: Dwg no
A19: =IF(ISBLANK(H19),"",($E$8&"."&+(COUNTA(H$7:H19)))) -> 
A20: =IF(ISBLANK(H20),"",($E$8&"."&+(COUNTA(H$7:H20)))) -> 1.2 | B20: PSAB2 | D20: (a,f,h) | E20: Furnished offices, latrines and carports | H20: sum | I20: 1
A21: =IF(ISBLANK(H21),"",($E$8&"."&+(COUNTA(H$7:H21)))) -> 1.3 | B21: PSAB3 | D21: (b) | E21: Engineers cellular phone costs | H21: sum | I21: 1
A22: =IF(ISBLANK(H22),"",($E$8&"."&+(COUNTA(H$7:H22)))) -> 1.4 | B22: PSAB1 | D22: (c) | E22: Nameboards | H22: no | I22: 2
A23: =IF(ISBLANK(H23),"",($E$8&"."&+(COUNTA(H$7:H23)))) -> 1.5 | B23: PSAB5 | D23: (d) | E23: Survey assistant | H23: sum | I23: 1
A24: =IF(ISBLANK(H24),"",($E$8&"."&+(COUNTA(H$7:H24)))) -> 1.6 | B24: PSAB6 | D24: (e) | E24: Survey equipment | H24: sum | I24: 1
A25: =IF(ISBLANK(H25),"",($E$8&"."&+(COUNTA(H$7:H25)))) -> 1.7 | B25: PSAB4.2 | D25: (g) | E25: Laboratory equipment | H25: sum | I25: 1
A26: =IF(ISBLANK(H26),"",($E$8&"."&+(COUNTA(H$7:H26)))) -> 
A27: =IF(ISBLANK(H27),"",($E$8&"."&+(COUNTA(H$7:H27)))) ->  | B27: 8.3.2 | C27: .2 | D27: Facilities for the Contractor
A28: =IF(ISBLANK(H28),"",($E$8&"."&+(COUNTA(H$7:H28)))) -> 
A29: =IF(ISBLANK(H29),"",($E$8&"."&+(COUNTA(H$7:H29)))) -> 1.8 | D29: (a) | E29: Offices and storage sheds | H29: sum | I29: 1
A30: =IF(ISBLANK(H30),"",($E$8&"."&+(COUNTA(H$7:H30)))) -> 1.9 | D30: (b) | E30: Workshops | H30: sum | I30: 1
A31: =IF(ISBLANK(H31),"",($E$8&"."&+(COUNTA(H$7:H31)))) -> 1.10 | D31: (c) | E31: Laboratories | H31: sum | I31: 1
A32: =IF(ISBLANK(H32),"",($E$8&"."&+(COUNTA(H$7:H32)))) -> 1.11 | D32: (d) | E32: Living accommodation | H32: sum | I32: 1
A33: =IF(ISBLANK(H33),"",($E$8&"."&+(COUNTA(H$7:H33)))) -> 1.12 | D33: (e) | E33: Ablution and latrine facilities | H33: sum | I33: 1
A34: =IF(ISBLANK(H34),"",($E$8&"."&+(COUNTA(H$7:H34)))) -> 1.13 | D34: (f) | E34: Tools and equipment | H34: sum | I34: 1
A35: =IF(ISBLANK(H35),"",($E$8&"."&+(COUNTA(H$7:H35)))) -> 1.14 | D35: (g) | E35: Water supplies, power and communication | H35: sum | I35: 1
A36: =IF(ISBLANK(H36),"",($E$8&"."&+(COUNTA(H$7:H36)))) -> 1.15 | D36: (h) | E36: Dealing with water (Sub-clause 5.5) | H36: sum | I36: 1
A37: =IF(ISBLANK(H37),"",($E$8&"."&+(COUNTA(H$7:H37)))) -> 1.16 | D37: (i) | E37: Access (Sub-clause 5.8) | H37: sum | I37: 1
A38: =IF(ISBLANK(H38),"",($E$8&"."&+(COUNTA(H$7:H38)))) -> 1.17 | D38: (j) | E38: Plant | H38: sum | I38: 1
A39: =IF(ISBLANK(H39),"",($E$8&"."&+(COUNTA(H$7:H39)))) -> 
A40: =IF(ISBLANK(H40),"",($E$8&"."&+(COUNTA(H$7:H40)))) -> 1.18 | B40: 8.3.3 | C40: Other fixed-charge obligations | H40: sum | I40: 1
A41: =IF(ISBLANK(H41),"",($E$8&"."&+(COUNTA(H$7:H41)))) -> 
A42: =IF(ISBLANK(H42),"",($E$8&"."&+(COUNTA(H$7:H42)))) ->  | B42: 8.3.4 | C42: Removal of Contractor's and Engineers site
A43: =IF(ISBLANK(H43),"",($E$8&"."&+(COUNTA(H$7:H43)))) -> 1.19 | C43: establishment on completion | H43: sum | I43: 1
A44: =IF(ISBLANK(H44),"",($E$8&"."&+(COUNTA(H$7:H44)))) -> 
A45: =IF(ISBLANK(H45),"",($E$8&"."&+(COUNTA(H$7:H45)))) ->  | B45: 8.3.5 | C45: Occupational Health and Safety
A46: =IF(ISBLANK(H46),"",($E$8&"."&+(COUNTA(H$7:H46)))) -> 
A47: =IF(ISBLANK(H47),"",($E$8&"."&+(COUNTA(H$7:H47)))) ->  | B47: PSA7 | C47: Compliance with Occupational Health and Safety Act
A48: =IF(ISBLANK(H48),"",($E$8&"."&+(COUNTA(H$7:H48)))) ->  | C48: (Act 85 of 1993) and its regulations and with the
A49: =IF(ISBLANK(H49),"",($E$8&"."&+(COUNTA(H$7:H49)))) -> 1.20 | C49: Employers Health and Safety Specification | H49: sum | I49: 1
A50: =IF(ISBLANK(H50),"",($E$8&"."&+(COUNTA(H$7:H50)))) -> 
A51: =IF(ISBLANK(H51),"",($E$8&"."&+(COUNTA(H$7:H51)))) ->  | B51: 8.3.6 | C51: Environmental Managemant
A52: =IF(ISBLANK(H52),"",($E$8&"."&+(COUNTA(H$7:H52)))) -> 
A53: =IF(ISBLANK(H53),"",($E$8&"."&+(COUNTA(H$7:H53)))) -> 1.21 | B53: PSAB8 | C53: Compliance with Environmental Management plan | H53: sum | I53: 1
J65: Carried Forward | K65: =SUM(K11:K64) -> 0
J66: Brought Forward | K66: =K65 -> 0
A68: =IF(ISBLANK(H68),"",($E$8&"."&+(COUNTA(H$7:H68)))) ->  | B68: PSA8.2 | C68: TIME-RELATED ITEMS
A69: =IF(ISBLANK(H69),"",($E$8&"."&+(COUNTA(H$7:H69)))) -> 
A70: =IF(ISBLANK(H70),"",($E$8&"."&+(COUNTA(H$7:H70)))) -> 1.22 | B70: 8.4.1 | C70: Contractual requirements | H70: sum | I70: 1
A71: =IF(ISBLANK(H71),"",($E$8&"."&+(COUNTA(H$7:H71)))) -> 
A72: =IF(ISBLANK(H72),"",($E$8&"."&+(COUNTA(H$7:H72)))) ->  | C72: Operation and maintenance of facilities on the Site for
A73: =IF(ISBLANK(H73),"",($E$8&"."&+(COUNTA(H$7:H73)))) ->  | C73: the duration of construction
A74: =IF(ISBLANK(H74),"",($E$8&"."&+(COUNTA(H$7:H74)))) ->  | B74: 8.4.2 | C74: .1 | D74: Facilities for the Engineer
A75: =IF(ISBLANK(H75),"",($E$8&"."&+(COUNTA(H$7:H75)))) ->  | D75: Dwg no
A76: =IF(ISBLANK(H76),"",($E$8&"."&+(COUNTA(H$7:H76)))) -> 
A77: =IF(ISBLANK(H77),"",($E$8&"."&+(COUNTA(H$7:H77)))) -> 1.23 | B77: PSAB2 | D77: (a,f,h) | E77: Furnished offices, latrines and carports | H77: sum | I77: 1
A78: =IF(ISBLANK(H78),"",($E$8&"."&+(COUNTA(H$7:H78)))) -> 1.24 | B78: PSAB3 | D78: (b) | E78: Telephone (Telkom landline) | H78: sum | I78: 1
A79: =IF(ISBLANK(H79),"",($E$8&"."&+(COUNTA(H$7:H79)))) -> 1.25 | B79: PSAB1 | D79: (c) | E79: Nameboards | H79: sum | I79: 1
A80: =IF(ISBLANK(H80),"",($E$8&"."&+(COUNTA(H$7:H80)))) -> 1.26 | B80: PSAB5 | D80: (d) | E80: Survey assistant | H80: sum | I80: 1
A81: =IF(ISBLANK(H81),"",($E$8&"."&+(COUNTA(H$7:H81)))) -> 1.27 | B81: PSAB6 | D81: (e) | E81: Survey equipment | H81: sum | I81: 1
A82: =IF(ISBLANK(H82),"",($E$8&"."&+(COUNTA(H$7:H82)))) -> 1.28 | B82: PSAB4.2 | D82: (g) | E82: Laboratory equipment | H82: sum | I82: 1
A84: =IF(ISBLANK(H84),"",($E$8&"."&+(COUNTA(H$7:H84)))) ->  | B84: 8.4.2 | C84: .2 | D84: Facilities for the Contractor
A85: =IF(ISBLANK(H85),"",($E$8&"."&+(COUNTA(H$7:H85)))) -> 
A86: =IF(ISBLANK(H86),"",($E$8&"."&+(COUNTA(H$7:H86)))) -> 1.29 | D86: (a) | E86: Offices and storage sheds | H86: sum | I86: 1
A87: =IF(ISBLANK(H87),"",($E$8&"."&+(COUNTA(H$7:H87)))) -> 1.30 | D87: (b) | E87: Workshops | H87: sum | I87: 1
A88: =IF(ISBLANK(H88),"",($E$8&"."&+(COUNTA(H$7:H88)))) -> 1.31 | D88: (c) | E88: Laboratories | H88: sum | I88: 1
A89: =IF(ISBLANK(H89),"",($E$8&"."&+(COUNTA(H$7:H89)))) -> 1.32 | D89: (d) | E89: Living accommodation | H89: sum | I89: 1
A90: =IF(ISBLANK(H90),"",($E$8&"."&+(COUNTA(H$7:H90)))) -> 1.33 | D90: (e) | E90: Ablution and latrine facilities | H90: sum | I90: 1
A91: =IF(ISBLANK(H91),"",($E$8&"."&+(COUNTA(H$7:H91)))) -> 1.34 | D91: (f) | E91: Tools and equipment | H91: sum | I91: 1
A92: =IF(ISBLANK(H92),"",($E$8&"."&+(COUNTA(H$7:H92)))) -> 1.35 | D92: (g) | E92: Water supplies, power and communication | H92: sum | I92: 1
A93: =IF(ISBLANK(H93),"",($E$8&"."&+(COUNTA(H$7:H93)))) -> 1.36 | D93: (h) | E93: Dealing with water (Sub-clause 5.5) | H93: sum | I93: 1
A94: =IF(ISBLANK(H94),"",($E$8&"."&+(COUNTA(H$7:H94)))) -> 1.37 | D94: (i) | E94: Access (Sub-clause 5.8) | H94: sum | I94: 1
A95: =IF(ISBLANK(H95),"",($E$8&"."&+(COUNTA(H$7:H95)))) -> 1.38 | D95: (j) | E95: Plant | H95: sum | I95: 1
A96: =IF(ISBLANK(H96),"",($E$8&"."&+(COUNTA(H$7:H96)))) -> 
A97: =IF(ISBLANK(H97),"",($E$8&"."&+(COUNTA(H$7:H97)))) -> 1.39 | B97: 8.4.3 | C97: Supervision for duration of construction | H97: sum | I97: 1
A98: =IF(ISBLANK(H98),"",($E$8&"."&+(COUNTA(H$7:H98)))) -> 
A99: =IF(ISBLANK(H99),"",($E$8&"."&+(COUNTA(H$7:H99)))) ->  | B99: 8.4.4 | C99: Company and head office overhead costs for the duration
A100: =IF(ISBLANK(H100),"",($E$8&"."&+(COUNTA(H$7:H100)))) -> 1.40 | C100: of the contract | H100: sum | I100: 1
A101: =IF(ISBLANK(H101),"",($E$8&"."&+(COUNTA(H$7:H101)))) -> 
A102: =IF(ISBLANK(H102),"",($E$8&"."&+(COUNTA(H$7:H102)))) -> 1.41 | B102: 8.4.5 | C102: Other time-related obligations | H102: sum | I102: 1
A103: =IF(ISBLANK(H103),"",($E$8&"."&+(COUNTA(H$7:H103)))) -> 
A104: =IF(ISBLANK(H104),"",($E$8&"."&+(COUNTA(H$7:H104)))) ->  | B104: 8.4.6 | C104: Occupational Health and Safety
A105: =IF(ISBLANK(H105),"",($E$8&"."&+(COUNTA(H$7:H105)))) -> 
A106: =IF(ISBLANK(H106),"",($E$8&"."&+(COUNTA(H$7:H106)))) ->  | B106: PSA7 | C106: Compliance with Occupational Health and Safety Act
A107: =IF(ISBLANK(H107),"",($E$8&"."&+(COUNTA(H$7:H107)))) ->  | C107: (Act 85 of 1993) and its regulations and with the
A108: =IF(ISBLANK(H108),"",($E$8&"."&+(COUNTA(H$7:H108)))) -> 1.42 | C108: Employers Health and Safety Specification | H108: sum | I108: 1
A109: =IF(ISBLANK(H109),"",($E$8&"."&+(COUNTA(H$7:H109)))) -> 
A110: =IF(ISBLANK(H110),"",($E$8&"."&+(COUNTA(H$7:H110)))) ->  | B110: 8.4.7 | C110: Environmental Managemant
A111: =IF(ISBLANK(H111),"",($E$8&"."&+(COUNTA(H$7:H111)))) -> 
A112: =IF(ISBLANK(H112),"",($E$8&"."&+(COUNTA(H$7:H112)))) -> 1.43 | B112: PSAB8 | C112: Compliance with Environmental Management plan | H112: sum | I112: 1
A114: =IF(ISBLANK(H114),"",($E$8&"."&+(COUNTA(H$7:H114)))) ->  | C114: Management of Local Subcontractors
A115: =IF(ISBLANK(H115),"",($E$8&"."&+(COUNTA(H$7:H115)))) -> 
A116: =IF(ISBLANK(H116),"",($E$8&"."&+(COUNTA(H$7:H116)))) -> 1.44 | B116: PSA8.4.8 | C116: Management of all Local Subcontractors | H116: sum | I116: 1
A119: =IF(OR(AND(M119>0),M119>1),O119,"") ->  | C119: =C8 -> BILL NO | E119: =$E$8 -> 1
C120: PRELIMINARY AND GENERAL
C122: Carried forward to Summary of Bills | J122: Total | K122: =SUM(K66:K116) -> 0

Sheet A-Prov Sum
A1: ='A-P&G '!A1 -> Contract: RLM/OMM/0156/2024/25
A2: Part C2: Pricing Data
A3: Section C2.2: Bill of Quantities
A4: Provisional Sums and Prime Cost Items
A5: Item | B5: Payment | C5: Description | H5: Unit | I5: Qty | J5: Rate | K5: Amount
B6: Reference | J6: (R) | K6: (R)
B8: SANS | C8: BILL NO | E8: 2
B9: 1200 A | C9: PROVISIONAL SUMS AND PRIME COST ITEMS
A10: =IF(ISBLANK(H10),"",($E$8&"."&+(COUNTA(H$7:H10)))) -> 
C11: Note:
A12: =IF(ISBLANK(H12),"",($E$8&"."&+(COUNTA(H$7:H12)))) ->  | C12: Expenditure under the following Provisional Sums is for
A13: =IF(ISBLANK(H13),"",($E$8&"."&+(COUNTA(H$7:H13)))) ->  | C13: work executed by the Contractor\Sub-contractor or
A14: =IF(ISBLANK(H14),"",($E$8&"."&+(COUNTA(H$7:H14)))) ->  | C14: Supplier during the construction phase of the contract.
A15: =IF(ISBLANK(H15),"",($E$8&"."&+(COUNTA(H$7:H15)))) ->  | C15: Values paid under these items shall be "nett values
C16: excluding discount and VAT"
C17: Invoices shall be supplied for each expenditure and
C18: attached to the payment certificates.
A21: =IF(ISBLANK(H21),"",($E$8&"."&+(COUNTA(H$7:H21)))) ->  | B21: PSA9.2 | C21: SUMS STATED PROVISIONALLY BY THE ENGINEER
A22: =IF(ISBLANK(H22),"",($E$8&"."&+(COUNTA(H$7:H22)))) -> 
A23: =IF(ISBLANK(H23),"",($E$8&"."&+(COUNTA(H$7:H23)))) ->  | C23: For work to be executed by the Contractor\Sub-contractor
A24: =IF(ISBLANK(H24),"",($E$8&"."&+(COUNTA(H$7:H24)))) ->  | C24: or Supplier and valued in terms of the "Valuation of
A25: =IF(ISBLANK(H25),"",($E$8&"."&+(COUNTA(H$7:H25)))) ->  | C25: Variations" clause in the Conditions of Contract.
A27: =IF(ISBLANK(H27),"",($E$8&"."&+(COUNTA(H$7:H27)))) ->  | C27: ALLOWANCES
A28: =IF(ISBLANK(H28),"",($E$8&"."&+(COUNTA(H$7:H28)))) -> 
A29: =IF(ISBLANK(H29),"",($E$8&"."&+(COUNTA(H$7:H29)))) ->  | C29: Allowances
A30: =IF(ISBLANK(H30),"",($E$8&"."&+(COUNTA(H$7:H30)))) -> 
A31: =IF(ISBLANK(H31),"",($E$8&"."&+(COUNTA(H$7:H31)))) ->  | B31: 8.5 | C31: (a) | D31: .1 | E31: Community requirements
A32: =IF(ISBLANK(H32),"",($E$8&"."&+(COUNTA(H$7:H32)))) -> 
A33: =IF(ISBLANK(H33),"",($E$8&"."&+(COUNTA(H$7:H33)))) -> 2.1 | B33: PSA9,3 | E33: .1 | F33: CLO/LDO remuneration | H33: Prov sum | I33: 1 | K33: 150000
A34: =IF(ISBLANK(H34),"",($E$8&"."&+(COUNTA(H$7:H34)))) -> 
A35: =IF(ISBLANK(H35),"",($E$8&"."&+(COUNTA(H$7:H35)))) -> 2.2 | E35: .2 | F35: Overheads, charges and profit on above | H35: % | K35: =SUM(K33*J35) -> 0
A36: =IF(ISBLANK(H36),"",($E$8&"."&+(COUNTA(H$7:H36)))) -> 
A37: =IF(ISBLANK(H37),"",($E$8&"."&+(COUNTA(H$7:H37)))) ->  | B37: PSA9,4 | E37: .3 | F37: Accredited training courses for selected
A38: =IF(ISBLANK(H38),"",($E$8&"."&+(COUNTA(H$7:H38)))) -> 2.3 | F38: local and other labourers | H38: Prov sum | I38: 1 | K38: 100000
A39: =IF(ISBLANK(H39),"",($E$8&"."&+(COUNTA(H$7:H39)))) -> 
A40: =IF(ISBLANK(H40),"",($E$8&"."&+(COUNTA(H$7:H40)))) -> 2.4 | E40: .4 | F40: Overheads, charges and profit on above | H40: % | K40: =SUM(K38*J40) -> 0
A41: =IF(ISBLANK(H41),"",($E$8&"."&+(COUNTA(H$7:H41)))) -> 
A42: =IF(ISBLANK(H42),"",($E$8&"."&+(COUNTA(H$7:H42)))) ->  | E42: .5 | F42: Wages and salaries of local and other
A43: =IF(ISBLANK(H43),"",($E$8&"."&+(COUNTA(H$7:H43)))) -> 2.5 | F43: labourers employed during training | H43: Prov sum | I43: 1 | K43: 50000
A44: =IF(ISBLANK(H44),"",($E$8&"."&+(COUNTA(H$7:H44)))) -> 
A45: =IF(ISBLANK(H45),"",($E$8&"."&+(COUNTA(H$7:H45)))) -> 2.6 | E45: .6 | F45: Overheads, charges and profit on above | H45: % | K45: =SUM(K43*J45) -> 0
A46: =IF(ISBLANK(H46),"",($E$8&"."&+(COUNTA(H$7:H46)))) -> 
A47: =IF(ISBLANK(H47),"",($E$8&"."&+(COUNTA(H$7:H47)))) -> 2.7 | B47: PSA9.9 | E47: .7 | F47: Relocation of existing residents on site | H47: Prov sum | I47: 1 | K47: 25000
A48: =IF(ISBLANK(H48),"",($E$8&"."&+(COUNTA(H$7:H48)))) -> 
A49: =IF(ISBLANK(H49),"",($E$8&"."&+(COUNTA(H$7:H49)))) -> 2.8 | E49: .8 | F49: Overheads, charges and profit on above | H49: % | K49: =SUM(K47*J49) -> 0
A51: =IF(ISBLANK(H51),"",($E$8&"."&+(COUNTA(H$7:H51)))) -> 2.9 | B51: PSA9,11 | E51: .9 | F51: PSC Members Meeting Allowance | H51: Prov sum | I51: 1 | K51: =6*1000*15 -> 90000
A52: =IF(ISBLANK(H52),"",($E$8&"."&+(COUNTA(H$7:H52)))) -> 
A53: =IF(ISBLANK(H53),"",($E$8&"."&+(COUNTA(H$7:H53)))) -> 2.10 | E53: .10 | F53: Overheads, charges and profit on above | H53: % | K53: =SUM(K51*J53) -> 0
A55: =IF(ISBLANK(H55),"",($E$8&"."&+(COUNTA(H$7:H55)))) -> 2.11 | B55: PSA9.10 | E55: .11 | F55: Specialist Social Facilitator | H55: Prov sum | I55: 1 | K55: =60000*15 -> 900000
A56: =IF(ISBLANK(H56),"",($E$8&"."&+(COUNTA(H$7:H56)))) -> 
A57: =IF(ISBLANK(H57),"",($E$8&"."&+(COUNTA(H$7:H57)))) -> 2.12 | E57: .12 | F57: Overheads, charges and profit on above | H57: % | K57: =SUM(K55*J57) -> 0
J65: Carried Forward
J66: Brought Forward | K66: =K65 -> 0
A68: =IF(ISBLANK(H68),"",($E$8&"."&+(COUNTA(H$7:H68)))) ->  | C68: ENGINEERS REQUIREMENTS
A69: =IF(ISBLANK(H69),"",($E$8&"."&+(COUNTA(H$7:H69)))) -> 
A70: =IF(ISBLANK(H70),"",($E$8&"."&+(COUNTA(H$7:H70)))) ->  | B70: 8.5 | C70: (a) | D70: .2 | E70: Engineers requirements
A71: =IF(ISBLANK(H71),"",($E$8&"."&+(COUNTA(H$7:H71)))) -> 
A72: =IF(ISBLANK(H72),"",($E$8&"."&+(COUNTA(H$7:H72)))) -> 2.13 | B72: PSA9.5 | E72: .1 | F72: Engineers cellular phone costs | H72: Prov sum | I72: 1 | K72: 25000
A73: =IF(ISBLANK(H73),"",($E$8&"."&+(COUNTA(H$7:H73)))) -> 
A74: =IF(ISBLANK(H74),"",($E$8&"."&+(COUNTA(H$7:H74)))) -> 2.14 | E74: .2 | F74: Overheads, charges and profit on above | H74: % | K74: =SUM(K72*J74) -> 0
A76: =IF(ISBLANK(H76),"",($E$8&"."&+(COUNTA(H$7:H76)))) -> 2.15 | B76: PSA9.7 | E76: .3 | F76: Acceptance control testing | H76: Prov sum | I76: 1 | K76: 25000
A78: =IF(ISBLANK(H78),"",($E$8&"."&+(COUNTA(H$7:H78)))) -> 2.16 | E78: .4 | F78: Overheads, charges and profit on above | H78: % | K78: =SUM(K76*J78) -> 0
A79: =IF(ISBLANK(H79),"",($E$8&"."&+(COUNTA(H$7:H79)))) -> 
A80: =IF(ISBLANK(H80),"",($E$8&"."&+(COUNTA(H$7:H80)))) ->  | C80: WORK TO EXISTING SERVICES
A81: =IF(ISBLANK(H81),"",($E$8&"."&+(COUNTA(H$7:H81)))) -> 
A82: =IF(ISBLANK(H82),"",($E$8&"."&+(COUNTA(H$7:H82)))) ->  | B82: 8.5 | C82: (a) | D82: .3 | E82: Existing services
A83: =IF(ISBLANK(H83),"",($E$8&"."&+(COUNTA(H$7:H83)))) -> 
A84: =IF(ISBLANK(H84),"",($E$8&"."&+(COUNTA(H$7:H84)))) -> 2.17 | E84: .1 | F84: Locating existing services | H84: Prov sum | I84: 1 | K84: 70000
A85: =IF(ISBLANK(H85),"",($E$8&"."&+(COUNTA(H$7:H85)))) -> 
A86: =IF(ISBLANK(H86),"",($E$8&"."&+(COUNTA(H$7:H86)))) -> 2.18 | E86: .2 | F86: Overheads, charges and profit on above | H86: % | K86: =SUM(K84*J86) -> 0
A87: =IF(ISBLANK(H87),"",($E$8&"."&+(COUNTA(H$7:H87)))) -> 
A88: =IF(ISBLANK(H88),"",($E$8&"."&+(COUNTA(H$7:H88)))) -> 2.19 | B88: PSA9.9 | E88: .3 | F88: Relocating existing services | H88: Prov sum | I88: 1 | K88: =100000-3686.36 -> 96313.64
A89: =IF(ISBLANK(H89),"",($E$8&"."&+(COUNTA(H$7:H89)))) -> 
A90: =IF(ISBLANK(H90),"",($E$8&"."&+(COUNTA(H$7:H90)))) -> 2.20 | E90: .4 | F90: Overheads, charges and profit on above | H90: % | K90: =SUM(K88*J90) -> 0
A91: =IF(ISBLANK(H91),"",($E$8&"."&+(COUNTA(H$7:H91)))) -> 
A92: =IF(ISBLANK(H92),"",($E$8&"."&+(COUNTA(H$7:H92)))) ->  | B92: PSA10 | C92: PRIME COST ITEMS
A93: =IF(ISBLANK(H93),"",($E$8&"."&+(COUNTA(H$7:H93)))) -> 
C94: Note:
A95: =IF(ISBLANK(H95),"",($E$8&"."&+(COUNTA(H$7:H95)))) ->  | C95: Expenditure under the following Prime Cost Item is for
A96: =IF(ISBLANK(H96),"",($E$8&"."&+(COUNTA(H$7:H96)))) ->  | C96: material purchases by the Contractor in the execution of
A97: =IF(ISBLANK(H97),"",($E$8&"."&+(COUNTA(H$7:H97)))) ->  | C97: dayworks only.
A98: =IF(ISBLANK(H98),"",($E$8&"."&+(COUNTA(H$7:H98)))) ->  | C98: Values paid under these items shall be "nett values
C99: excluding discount and VAT"
C100: Invoices shall be supplied for each expenditure and
C101: attached to the payment certificates.
A102: =IF(ISBLANK(H102),"",($E$8&"."&+(COUNTA(H$7:H102)))) -> 
A103: =IF(ISBLANK(H103),"",($E$8&"."&+(COUNTA(H$7:H103)))) -> 
A104: =IF(ISBLANK(H104),"",($E$8&"."&+(COUNTA(H$7:H104)))) ->  | B104: 8.6 | C104: Materials for dayworks
A105: =IF(ISBLANK(H105),"",($E$8&"."&+(COUNTA(H$7:H105)))) -> 
A106: =IF(ISBLANK(H106),"",($E$8&"."&+(COUNTA(H$7:H106)))) -> 2.21 | B106: PSA10.1 | C106: (a) | D106: Materials used in the execution of dayworks | H106: PC item | I106: 1 | K106: 5000
A107: =IF(ISBLANK(H107),"",($E$8&"."&+(COUNTA(H$7:H107)))) -> 
A108: =IF(ISBLANK(H108),"",($E$8&"."&+(COUNTA(H$7:H112)))) -> 2.22 | C108: (b) | D108: Overheads, charges and profit on above | H108: % | K108: =SUM(K106*J108) -> 0
A113: =IF(ISBLANK(H113),"",($E$8&"."&+(COUNTA(H$7:H113)))) -> 
A114: =IF(ISBLANK(H114),"",($E$8&"."&+(COUNTA(H$7:H114)))) -> 
C121: =C8 -> BILL NO | E121: =$E$8 -> 2
C122: PROVISIONAL SUMS AND PRIME COST ITEMS
C124: Carried forward to Summary of Bills | J124: Total

Sheet A-Daywork
A1: ='A-P&G '!A1 -> Contract: RLM/OMM/0156/2024/25
A2: Part C2: Pricing Data
A3: Section C2.2: Bill of Quantities
A4: Dayworks and Temporary Works
A5: Item | B5: Payment | C5: Description | H5: Unit | I5: Qty | J5: Rate | K5: Amount
B6: Reference | J6: (R) | K6: (R)
B8: SANS | C8: BILL NO | E8: 3
B9: 1200 A | C9: DAYWORKS
C11: DAYWORKS
A12: =IF(ISBLANK(H12),"",($E$8&"."&+(COUNTA(H$7:H12)))) -> 
A13: =IF(ISBLANK(H13),"",($E$8&"."&+(COUNTA(H$7:H13)))) ->  | C13: Note:
A14: =IF(ISBLANK(H14),"",($E$8&"."&+(COUNTA(H$7:H14)))) ->  | C14: Dayworks executed on instruction of the Engineer only.
A15: =IF(ISBLANK(H15),"",($E$8&"."&+(COUNTA(H$7:H15)))) ->  | C15: Supervision of dayworks is not payable under this section
A16: =IF(ISBLANK(H16),"",($E$8&"."&+(COUNTA(H$7:H16)))) ->  | C16: and is deemed to be included under Preliminary and
A17: =IF(ISBLANK(H17),"",($E$8&"."&+(COUNTA(H$7:H17)))) ->  | C17: General items in 1200A
A18: =IF(ISBLANK(H18),"",($E$8&"."&+(COUNTA(H$7:H18)))) ->  | C18: Daywork sheets shall be delivered to the Engineer at the
A19: =IF(ISBLANK(H19),"",($E$8&"."&+(COUNTA(H$7:H19)))) ->  | C19: end of each day for approval, failing this, the Engineer
A20: =IF(ISBLANK(H20),"",($E$8&"."&+(COUNTA(H$7:H20)))) ->  | C20: will reject the dayworks.
A22: =IF(ISBLANK(H22),"",($E$8&"."&+(COUNTA(H$7:H22)))) -> 
A23: =IF(ISBLANK(H23),"",($E$8&"."&+(COUNTA(H$7:H23)))) ->  | B23: 8.7.1 | C23: LABOUR
A24: =IF(ISBLANK(H24),"",($E$8&"."&+(COUNTA(H$7:H24)))) -> 
A25: =IF(ISBLANK(H25),"",($E$8&"."&+(COUNTA(H$7:H25)))) -> 3.1 | C25: (a) | D25: Skilled | H25: hr | I25: 25
A27: =IF(ISBLANK(H27),"",($E$8&"."&+(COUNTA(H$7:H27)))) -> 3.2 | C27: (b) | D27: Semi-skilled | H27: hr | I27: 35
A29: =IF(ISBLANK(H29),"",($E$8&"."&+(COUNTA(H$7:H29)))) -> 3.3 | C29: (c) | D29: Un-skilled | H29: hr | I29: 50
A30: =IF(ISBLANK(H30),"",($E$8&"."&+(COUNTA(H$7:H30)))) -> 
A31: =IF(ISBLANK(H31),"",($E$8&"."&+(COUNTA(H$7:H31)))) ->  | C31: PLANTHIRE (WORK RATES ON SITE)
A32: =IF(ISBLANK(H32),"",($E$8&"."&+(COUNTA(H$7:H32)))) -> 
A33: =IF(ISBLANK(H33),"",($E$8&"."&+(COUNTA(H$7:H33)))) ->  | C33: TRUCKS
A34: =IF(ISBLANK(H34),"",($E$8&"."&+(COUNTA(H$7:H34)))) -> 
A35: =IF(ISBLANK(H35),"",($E$8&"."&+(COUNTA(H$7:H35)))) ->  | B35: 8.7.2 | C35: .1 | D35: Tipper trucks (specify capacity)
A36: =IF(ISBLANK(H36),"",($E$8&"."&+(COUNTA(H$7:H36)))) -> 
A37: =IF(ISBLANK(H37),"",($E$8&"."&+(COUNTA(H$7:H37)))) -> 3.4 | D37: (a) | E37: Capacity_____m³ (small) | H37: hr | I37: 5
A38: =IF(ISBLANK(H38),"",($E$8&"."&+(COUNTA(H$7:H38)))) ->  | C38: LDV'S
A39: =IF(ISBLANK(H39),"",($E$8&"."&+(COUNTA(H$7:H39)))) -> 
A40: =IF(ISBLANK(H40),"",($E$8&"."&+(COUNTA(H$7:H40)))) ->  | B40: 8.7.2 | C40: .4 | D40: LDV (specify size)
A41: =IF(ISBLANK(H41),"",($E$8&"."&+(COUNTA(H$7:H41)))) -> 
A42: =IF(ISBLANK(H42),"",($E$8&"."&+(COUNTA(H$7:H42)))) -> 3.5 | D42: (a) | E42: LDV_____ton | H42: km | I42: 50
A43: =IF(ISBLANK(H43),"",($E$8&"."&+(COUNTA(H$7:H43)))) -> 
A44: =IF(ISBLANK(H44),"",($E$8&"."&+(COUNTA(H$7:H44)))) ->  | C44: WATER TANKERS
A45: =IF(ISBLANK(H45),"",($E$8&"."&+(COUNTA(H$7:H45)))) -> 
A46: =IF(ISBLANK(H46),"",($E$8&"."&+(COUNTA(H$7:H46)))) ->  | B46: 8.7.2 | C46: .5 | D46: Water tankers (specify capacity)
A47: =IF(ISBLANK(H47),"",($E$8&"."&+(COUNTA(H$7:H47)))) -> 
A48: =IF(ISBLANK(H48),"",($E$8&"."&+(COUNTA(H$7:H48)))) -> 3.6 | D48: (a) | E48: Capacity______liter (small, towable) | H48: hr | I48: 5
A49: =IF(ISBLANK(H49),"",($E$8&"."&+(COUNTA(H$7:H49)))) ->  | C49: TLB'S
A50: =IF(ISBLANK(H50),"",($E$8&"."&+(COUNTA(H$7:H50)))) -> 
A51: =IF(ISBLANK(H51),"",($E$8&"."&+(COUNTA(H$7:H51)))) ->  | B51: 8.7.2 | C51: .10 | D51: Tractor loader backhoe (TLB)(specify model)
A52: =IF(ISBLANK(H52),"",($E$8&"."&+(COUNTA(H$7:H52)))) -> 
A53: =IF(ISBLANK(H53),"",($E$8&"."&+(COUNTA(H$7:H53)))) -> 3.7 | D53: (a) | E53: Model__________ | H53: hr | I53: 5
A54: =IF(ISBLANK(H54),"",($E$8&"."&+(COUNTA(H$7:H54)))) -> 
A55: =IF(ISBLANK(H55),"",($E$8&"."&+(COUNTA(H$7:H55)))) ->  | C55: WALK BEHIND ROLLERS
A56: =IF(ISBLANK(H56),"",($E$8&"."&+(COUNTA(H$7:H56)))) -> 
A57: =IF(ISBLANK(H57),"",($E$8&"."&+(COUNTA(H$7:H57)))) ->  | B57: 8.7.2 | C57: .14 | D57: Walk behind vibrating rollers (specify model)
A58: =IF(ISBLANK(H58),"",($E$8&"."&+(COUNTA(H$7:H58)))) -> 
A59: =IF(ISBLANK(H59),"",($E$8&"."&+(COUNTA(H$7:H59)))) -> 3.8 | D59: (a) | E59: Model_______(BW 61) (small) | H59: hr | I59: 5
J69: Carried Forward
J70: Brought Forward
A71: =IF(ISBLANK(H71),"",($E$8&"."&+(COUNTA(H$7:H71)))) -> 
A72: =IF(ISBLANK(H72),"",($E$8&"."&+(COUNTA(H$7:H72)))) ->  | C72: COMPACTORS
A73: =IF(ISBLANK(H73),"",($E$8&"."&+(COUNTA(H$7:H73)))) -> 
A74: =IF(ISBLANK(H74),"",($E$8&"."&+(COUNTA(H$7:H74)))) ->  | B74: 8.7.2 | C74: .15 | D74: Plate compactors (specify model)
A75: =IF(ISBLANK(H75),"",($E$8&"."&+(COUNTA(H$7:H75)))) -> 
A76: =IF(ISBLANK(H76),"",($E$8&"."&+(COUNTA(H$7:H76)))) -> 3.9 | D76: (a) | E76: Model_______ | H76: hr | I76: 5
A77: =IF(ISBLANK(H77),"",($E$8&"."&+(COUNTA(H$7:H77)))) -> 
A78: =IF(ISBLANK(H78),"",($E$8&"."&+(COUNTA(H$7:H78)))) ->  | B78: 8.7.2 | C78: .16 | D78: Wackers (specify model)
A79: =IF(ISBLANK(H79),"",($E$8&"."&+(COUNTA(H$7:H79)))) -> 
A80: =IF(ISBLANK(H80),"",($E$8&"."&+(COUNTA(H$7:H80)))) -> 3.10 | D80: (a) | E80: Model_______ | H80: hr | I80: 5
A82: =IF(ISBLANK(H82),"",($E$8&"."&+(COUNTA(H$7:H82)))) -> 
A83: =IF(ISBLANK(H83),"",($E$8&"."&+(COUNTA(H$7:H83)))) ->  | C83: WATERPUMPS
A84: =IF(ISBLANK(H84),"",($E$8&"."&+(COUNTA(H$7:H84)))) -> 
A85: =IF(ISBLANK(H85),"",($E$8&"."&+(COUNTA(H$7:H85)))) ->  | B85: 8.7.2 | C85: .19 | D85: Waterpump (specify capacity)
A86: =IF(ISBLANK(H86),"",($E$8&"."&+(COUNTA(H$7:H86)))) -> 
A87: =IF(ISBLANK(H87),"",($E$8&"."&+(COUNTA(H$7:H87)))) -> 3.11 | D87: (a) | E87: Capacity_____ liter/sec (small) | H87: hr | I87: 5
A88: =IF(ISBLANK(H88),"",($E$8&"."&+(COUNTA(H$7:H88)))) -> 
A89: =IF(ISBLANK(H89),"",($E$8&"."&+(COUNTA(H$7:H89)))) ->  | C89: TRANSPORT (COST TO AND FROM SITE)
A90: =IF(ISBLANK(H90),"",($E$8&"."&+(COUNTA(H$7:H90)))) -> 
A91: =IF(ISBLANK(H91),"",($E$8&"."&+(COUNTA(H$7:H91)))) ->  | C91: Note:
A92: =IF(ISBLANK(H92),"",($E$8&"."&+(COUNTA(H$7:H92)))) ->  | C92: Distance shall be measured one way only (tender
A93: =IF(ISBLANK(H93),"",($E$8&"."&+(COUNTA(H$7:H93)))) ->  | C93: rates shall include for transport in both directions
A94: =IF(ISBLANK(H94),"",($E$8&"."&+(COUNTA(H$7:H94)))) ->  | C94: to and from site)
A96: =IF(ISBLANK(H96),"",($E$8&"."&+(COUNTA(H$7:H96)))) -> 
A97: =IF(ISBLANK(H97),"",($E$8&"."&+(COUNTA(H$7:H97)))) ->  | B97: 8.7.3 | C97: .1 | D97: Low bed
A98: =IF(ISBLANK(H98),"",($E$8&"."&+(COUNTA(H$7:H98)))) -> 
A99: =IF(ISBLANK(H99),"",($E$8&"."&+(COUNTA(H$7:H99)))) ->  | D99: (a) | E99: Low-bed (suitable for the largest piece
A100: =IF(ISBLANK(H100),"",($E$8&"."&+(COUNTA(H$7:H100)))) -> 3.12 | E100: of equipment above) | H100: km | I100: 50
A101: =IF(ISBLANK(H101),"",($E$8&"."&+(COUNTA(H$7:H101)))) -> 
A102: =IF(ISBLANK(H102),"",($E$8&"."&+(COUNTA(H$7:H102)))) ->  | B102: 8.7.3 | C102: .2 | D102: Tipper truck
A103: =IF(ISBLANK(H103),"",($E$8&"."&+(COUNTA(H$7:H103)))) -> 
A104: =IF(ISBLANK(H104),"",($E$8&"."&+(COUNTA(H$7:H104)))) -> 3.13 | D104: (a) | E104: Small | H104: km | I104: 50
A105: =IF(ISBLANK(H105),"",($E$8&"."&+(COUNTA(H$7:H105)))) -> 
A106: =IF(ISBLANK(H106),"",($E$8&"."&+(COUNTA(H$7:H106)))) ->  | B106: 8.7.3 | C106: .4 | D106: Water tanker
A107: =IF(ISBLANK(H107),"",($E$8&"."&+(COUNTA(H$7:H107)))) -> 
A108: =IF(ISBLANK(H108),"",($E$8&"."&+(COUNTA(H$7:H108)))) -> 3.14 | D108: (a) | E108: Small | H108: km | I108: 50
A109: =IF(ISBLANK(H109),"",($E$8&"."&+(COUNTA(H$7:H109)))) -> 
C129: =C8 -> BILL NO | E129: =$E$8 -> 3
C130: DAYWORKS
C132: Carried forward to Summary of Bills | J132: Total

Sheet A-Temporary Works
A1: ='A-P&G '!A1 -> Contract: RLM/OMM/0156/2024/25
A2: Part C2: Pricing Data
A3: Section C2.2: Bill of Quantities
A4: Dayworks and Temporary Works
A5: Item | B5: Payment | C5: Description | H5: Unit | I5: Qty | J5: Rate | K5: Amount
B6: Reference | J6: (R) | K6: (R)
B8: SANS | C8: BILL NO | E8: 4
B9: 1200 D | C9: TEMPORARY WORKS
A11: =IF(ISBLANK(H11),"",($E$8&"."&+(COUNTA(H$7:H11)))) -> 
B12: PSD5 | C12: ACCOMMODATION OF TRAFFIC
C14: Accommodation of traffic during construction where
C15: work is constructed where public traffic needs to be
C16: accommodated during the construction
A18: =IF(ISBLANK(H18),"",($E$8&"."&+(COUNTA(H$7:H18)))) -> 4.1 | B18: 8.8.2 | C18: Accommodation of traffic | H18: sum | I18: 1
A20: =IF(ISBLANK(H20),"",($E$8&"."&+(COUNTA(H$7:H20)))) ->  | C20: WORK TO EXISTING SERVICES
A21: =IF(ISBLANK(H21),"",($E$8&"."&+(COUNTA(H$7:H21)))) -> 
A22: =IF(ISBLANK(H22),"",($E$8&"."&+(COUNTA(H$7:H22)))) ->  | B22: 8.3.8 | C22: Existing services
A24: =IF(ISBLANK(H24),"",($E$8&"."&+(COUNTA(H$7:H24)))) ->  | C24: (a) | D24: Supply or hire specialist equipment for the detection
A25: =IF(ISBLANK(H25),"",($E$8&"."&+(COUNTA(H$7:H10)))) -> 4.0 | D25: of services | H25: sum | I25: 1
A27: =IF(ISBLANK(H27),"",($E$8&"."&+(COUNTA(H$7:H27)))) -> 4.3 | C27: (b) | D27: The use of equipment referred to above | H27: day | I27: 10
A28: =IF(ISBLANK(H28),"",($E$8&"."&+(COUNTA(H$7:H28)))) -> 
A29: =IF(ISBLANK(H29),"",($E$8&"."&+(COUNTA(H$7:H29)))) ->  | C29: (c) | D29: Excavation by hand in soft material to expose
A30: =IF(ISBLANK(H30),"",($E$8&"."&+(COUNTA(H$7:H10)))) -> 4.0 | D30: services | H30: m³ | I30: 55
C66: =C8 -> BILL NO | E66: =$E$8 -> 4
C67: TEMPORARY WORKS
C69: Carried forward to Summary of Bills | J69: Total

Sheet new sewers
A1: ='A-P&G '!A1 -> Contract: RLM/OMM/0156/2024/25
A2: Part C2: Pricing Data
A3: Section C2.2: Bill of Quantities
A4: uPVC Sewers
A5: Item | B5: Payment | C5: Description | H5: Unit | I5: Qty | J5: Rate | K5: Amount
B6: Reference | J6: (R) | K6: (R)
B8: SANS | C8: BILL NO | E8: 5
B9: 1200 LD | C9: NEW SEWERS
A11: =IF(ISBLANK(H11),"",($E$8&"."&+(COUNTA(H$7:H11)))) ->  | B11: PSC | C11: DEMOLITIONS
A13: =IF(ISBLANK(H13),"",($E$8&"."&+(COUNTA(H$7:H13)))) ->  | B13: SANS | C13: DEMOLISH AND SPOIL MATERIAL OFF SITE
A14: =IF(ISBLANK(H14),"",($E$8&"."&+(COUNTA(H$7:H14)))) ->  | B14: 1200 C
A15: =IF(ISBLANK(H15),"",($E$8&"."&+(COUNTA(H$7:H15)))) ->  | B15: PSC1 | C15: Demolish and spoil material for structures, buildings,
A16: =IF(ISBLANK(H16),"",($E$8&"."&+(COUNTA(H$7:H16)))) ->  | C16: etc at a spoil site established by the Contractor
A17: =IF(ISBLANK(H17),"",($E$8&"."&+(COUNTA(H$7:H17)))) -> 
A18: =IF(ISBLANK(H18),"",($E$8&"."&+(COUNTA(H$7:H18)))) ->  | B18: 8.2.8 | C18: (a) | D18: Sundry structures, etc
A19: =IF(ISBLANK(H19),"",($E$8&"."&+(COUNTA(H$7:H19)))) -> 
A20: =IF(ISBLANK(H20),"",($E$8&"."&+(COUNTA(H$7:H20)))) -> 5.1 | D20: .3 | E20: Mass concrete structures | H20: m³ | I20: 25
A21: =IF(ISBLANK(H21),"",($E$8&"."&+(COUNTA(H$7:H21)))) -> 
A22: =IF(ISBLANK(H22),"",($E$8&"."&+(COUNTA(H$7:H22)))) -> 5.2 | D22: .4 | E22: Reinforced concrete structures | H22: m³ | I22: 25
A23: =IF(ISBLANK(H23),"",($E$8&"."&+(COUNTA(H$7:H23)))) -> 
A24: =IF(ISBLANK(H24),"",($E$8&"."&+(COUNTA(H$7:H24)))) -> 5.3 | D24: .5 | E24: 150mm Thick concrete paving | H24: m² | I24: 100
A25: =IF(ISBLANK(H25),"",($E$8&"."&+(COUNTA(H$7:H25)))) -> 
A26: =IF(ISBLANK(H26),"",($E$8&"."&+(COUNTA(H$7:H26)))) -> 5.4 | D26: .6 | E26: 150mm Thick reinforced concrete paving | H26: m² | I26: 100
A27: =IF(ISBLANK(H27),"",($E$8&"."&+(COUNTA(H$7:H27)))) -> 
A28: =IF(ISBLANK(H28),"",($E$8&"."&+(COUNTA(H$7:H28)))) -> 5.5 | D28: .7 | E28: Concrete kerbing (all types and sizes) | H28: m | I28: 100
A29: =IF(ISBLANK(H29),"",($E$8&"."&+(COUNTA(H$7:H29)))) -> 
A30: =IF(ISBLANK(H30),"",($E$8&"."&+(COUNTA(H$7:H30)))) -> 5.6 | D30: .8 | E30: Mass brickwork structures | H30: m³ | I30: 25
A31: =IF(ISBLANK(H31),"",($E$8&"."&+(COUNTA(H$7:H31)))) -> 
B32: PSC | C32: CLEAR SITE
A34: =IF(ISBLANK(H34),"",($E$8&"."&+(COUNTA(H$7:H34)))) ->  | B34: SANS | C34: CLEAR AND GRUB SITE
A35: =IF(ISBLANK(H35),"",($E$8&"."&+(COUNTA(H$7:H35)))) ->  | B35: 1200 C
A36: =IF(ISBLANK(H36),"",($E$8&"."&+(COUNTA(H$7:H36)))) ->  | B36: 8.3.1 | C36: (a) | D36: Clear and grub strips for (where not cleared within
A37: =IF(ISBLANK(H37),"",($E$8&"."&+(COUNTA(H$7:H37)))) ->  | B37: PSC2 | D37: other clear and grub areas)
A38: =IF(ISBLANK(H38),"",($E$8&"."&+(COUNTA(H$7:H38)))) -> 
A39: =IF(ISBLANK(H39),"",($E$8&"."&+(COUNTA(H$7:H39)))) -> 5.7 | D39: .1 | E39: Pipeline 3m wide | H39: m | I39: 7271
A40: =IF(ISBLANK(H40),"",($E$8&"."&+(COUNTA(H$7:H40)))) -> 
A41: =IF(ISBLANK(H41),"",($E$8&"."&+(COUNTA(H$7:H41)))) ->  | B41: PSC3 | C41: REMOVE LARGE TREES AND STUMPS
A42: =IF(ISBLANK(H42),"",($E$8&"."&+(COUNTA(H$7:H42)))) -> 
A43: =IF(ISBLANK(H43),"",($E$8&"."&+(COUNTA(H$7:H43)))) ->  | B43: 8.3.1 | C43: (b) | D43: Remove and grub large trees and tree stumps of girth
A44: =IF(ISBLANK(H44),"",($E$8&"."&+(COUNTA(H$7:H44)))) -> 
A45: =IF(ISBLANK(H45),"",($E$8&"."&+(COUNTA(H$7:H45)))) -> 5.8 | D45: .1 | E45: Exceeding 1m and up to and including 2m | H45: no | I45: 15
A47: =IF(ISBLANK(H47),"",($E$8&"."&+(COUNTA(H$7:H47)))) -> 5.9 | D47: .2 | E47: Exceeding 2m and up to and including 3m | H47: no | I47: 5
J65: Carried Forward
J66: Brought Forward
B68: PSDB | C68: TRENCHING
C70: Note:
C71: Please note that dewatering of trenches must be priced under the P&G section of these bills of quantities under items 8.3.2.2.h and 8.4.2.2.h
A73: =IF(ISBLANK(H73),"",($E$8&"."&+(COUNTA(H$7:H73)))) ->  | B73: SANS | C73: EXCAVATION AND BACKFILLING
A74: =IF(ISBLANK(H74),"",($E$8&"."&+(COUNTA(H$7:H74)))) ->  | B74: 1200 DB
A75: =IF(ISBLANK(H75),"",($E$8&"."&+(COUNTA(H$7:H75)))) ->  | C75: Excavate in all materials, backfill and compact to 93%
A76: =IF(ISBLANK(H76),"",($E$8&"."&+(COUNTA(H$7:H76)))) ->  | C76: mod AASHTO density, and dispose of surplus and
A77: =IF(ISBLANK(H77),"",($E$8&"."&+(COUNTA(H$7:H77)))) ->  | C77: unsuitable materials for trenches
A78: =IF(ISBLANK(H78),"",($E$8&"."&+(COUNTA(H$7:H78)))) -> 
A79: =IF(ISBLANK(H79),"",($E$8&"."&+(COUNTA(H$7:H79)))) ->  | B79: 8.3.2 | C79: (a) | D79: .1 | E79: Up to 1m wide
A80: =IF(ISBLANK(H80),"",($E$8&"."&+(COUNTA(H$7:H80)))) -> 
A81: =IF(ISBLANK(H81),"",($E$8&"."&+(COUNTA(H$7:H81)))) -> 5.10 | E81: .2 | F81: Over 1m and up to 2m deep | H81: m³ | I81: 6123
A82: =IF(ISBLANK(H82),"",($E$8&"."&+(COUNTA(H$7:H82)))) -> 
A83: =IF(ISBLANK(H83),"",($E$8&"."&+(COUNTA(H$7:H83)))) -> 5.11 | E83: .3 | F83: Over 2m and up to 3m deep | H83: m³ | I83: 5723
A84: =IF(ISBLANK(H84),"",($E$8&"."&+(COUNTA(H$7:H84)))) -> 
A85: =IF(ISBLANK(H85),"",($E$8&"."&+(COUNTA(H$7:H85)))) -> 5.12 | E85: .4 | F85: Over 3m and up to 4m deep | H85: m³ | I85: 211
A86: =IF(ISBLANK(H86),"",($E$8&"."&+(COUNTA(H$7:H86)))) -> 
A87: =IF(ISBLANK(H87),"",($E$8&"."&+(COUNTA(H$7:H87)))) -> 5.13 | E87: .5 | F87: Over 4m and up to 5m deep | H87: m³ | I87: 22
A88: =IF(ISBLANK(H88),"",($E$8&"."&+(COUNTA(H$7:H88)))) -> 
A89: =IF(ISBLANK(H89),"",($E$8&"."&+(COUNTA(H$7:H89)))) -> 5.14 | E89: .6 | F89: Over 5m and up to 6m deep | H89: m³ | I89: 11
A91: =IF(ISBLANK(H91),"",($E$8&"."&+(COUNTA(H$7:H91)))) ->  | B91: 8.3.2 | C91: (b) | D91: Extra over reference 8.3.2 (a) for
A92: =IF(ISBLANK(H92),"",($E$8&"."&+(COUNTA(H$7:H92)))) -> 
A93: =IF(ISBLANK(H93),"",($E$8&"."&+(COUNTA(H$7:H93)))) -> 5.15 | D93: .2 | E93: Hard rock excavation | H93: m³ | I93: 2300
A95: =IF(ISBLANK(H95),"",($E$8&"."&+(COUNTA(H$7:H95)))) -> 5.16 | D95: .3 | E95: Hard rock excavation (controlled blasting) | H95: m³ | I95: 1000
A96: =IF(ISBLANK(H96),"",($E$8&"."&+(COUNTA(H$7:H96)))) -> 
A97: =IF(ISBLANK(H97),"",($E$8&"."&+(COUNTA(H$7:H97)))) -> 5.17 | D97: .4 | E97: Hard rock excavation (chemical blasting) | H97: m³ | I97: 100
A98: =IF(ISBLANK(H98),"",($E$8&"."&+(COUNTA(H$7:H98)))) -> 
A99: =IF(ISBLANK(H99),"",($E$8&"."&+(COUNTA(H$7:H99)))) ->  | B99: 8.3.2 | C99: (c) | D99: Excavate unsuitable material from trench bottom,
A100: =IF(ISBLANK(H100),"",($E$8&"."&+(COUNTA(H$7:H100)))) ->  | D100: dispose of material, and re-fill with suitable imported
A101: =IF(ISBLANK(H101),"",($E$8&"."&+(COUNTA(H$7:H102)))) -> 5.18 | D101: material compacted to 90% mod AASHTO density | H101: m³ | I101: 50
A102: =IF(ISBLANK(H102),"",($E$8&"."&+(COUNTA(H$7:H102)))) -> 
A103: =IF(ISBLANK(H103),"",($E$8&"."&+(COUNTA(H$7:H103)))) ->  | C103: DEFICIENCY IN BACKFILL MATERIAL
A104: =IF(ISBLANK(H104),"",($E$8&"."&+(COUNTA(H$7:H104)))) -> 
A105: =IF(ISBLANK(H105),"",($E$8&"."&+(COUNTA(H$7:H105)))) ->  | B105: 8.3.3 | C105: Excavation ancillaries
A106: =IF(ISBLANK(H106),"",($E$8&"."&+(COUNTA(H$7:H106)))) -> 
A107: =IF(ISBLANK(H107),"",($E$8&"."&+(COUNTA(H$7:H107)))) ->  | C107: .1 | D107: Make up deficiency in backfill material
A108: =IF(ISBLANK(H108),"",($E$8&"."&+(COUNTA(H$7:H108)))) -> 
A109: =IF(ISBLANK(H109),"",($E$8&"."&+(COUNTA(H$7:H109)))) -> 5.19 | D109: (a) | E109: From other necessary excavations on site | H109: m³ | I109: 150
A110: =IF(ISBLANK(H110),"",($E$8&"."&+(COUNTA(H$7:H110)))) -> 
A111: =IF(ISBLANK(H111),"",($E$8&"."&+(COUNTA(H$7:H111)))) ->  | D111: (c) | E111: By importation of G7 material from commercial
A112: =IF(ISBLANK(H112),"",($E$8&"."&+(COUNTA(H$7:H112)))) -> 5.20 | E112: sources selected by the Contractor | H112: m³ | I112: 150
J122: Carried Forward
J123: Brought Forward
A124: =IF(ISBLANK(H124),"",($E$8&"."&+(COUNTA(H$7:H194)))) -> 
A125: =IF(ISBLANK(H125),"",($E$8&"."&+(COUNTA(H$7:H125)))) ->  | C125: SHORING OF TRENCHES
A126: =IF(ISBLANK(H126),"",($E$8&"."&+(COUNTA(H$7:H126)))) -> 
A127: =IF(ISBLANK(H127),"",($E$8&"."&+(COUNTA(H$7:H127)))) ->  | B127: 8.3.4 | C127: (a) | D127: Shore trench opposite structure or service
A128: =IF(ISBLANK(H128),"",($E$8&"."&+(COUNTA(H$7:H128)))) -> 
A129: =IF(ISBLANK(H129),"",($E$8&"."&+(COUNTA(H$7:H129)))) -> 5.21 | D129: .1 | E129: Shoring of sewer trenches maximum 2m deep of approved method (both sides to be shored - measured as trench length and both sides to be priced in one measurement) | H129: m | I129: 100
A130: =IF(ISBLANK(H130),"",($E$8&"."&+(COUNTA(H$7:H130)))) -> 
A131: =IF(ISBLANK(H131),"",($E$8&"."&+(COUNTA(H$7:H131)))) -> 5.22 | D131: .2 | E131: Ditto maximum 4m deep | H131: m | I131: 100
A133: =IF(ISBLANK(H133),"",($E$8&"."&+(COUNTA(H$7:H133)))) -> 5.23 | D133: .3 | E133: Ditto maximum 6m deep | H133: m | I133: 10
C135: EXISTING SERVICES
A137: =IF(ISBLANK(H137),"",($E$8&"."&+(COUNTA(H$7:H137)))) ->  | B137: PDBD2 | C137: WORK TO EXISTING SERVICES
A138: =IF(ISBLANK(H138),"",($E$8&"."&+(COUNTA(H$7:H138)))) -> 
A139: =IF(ISBLANK(H139),"",($E$8&"."&+(COUNTA(H$7:H139)))) ->  | C139: Existing services that intersect or adjoin pipe trench
A140: =IF(ISBLANK(H140),"",($E$8&"."&+(COUNTA(H$7:H140)))) ->  | C140: excavations
A141: =IF(ISBLANK(H141),"",($E$8&"."&+(COUNTA(H$7:H141)))) -> 
A142: =IF(ISBLANK(H142),"",($E$8&"."&+(COUNTA(H$7:H142)))) ->  | B142: 8.3.5 | C142: (a) | D142: Services that intersect a trench
A143: =IF(ISBLANK(H143),"",($E$8&"."&+(COUNTA(H$7:H143)))) -> 
A144: =IF(ISBLANK(H144),"",($E$8&"."&+(COUNTA(H$7:H144)))) -> 5.24 | D144: .1 | E144: Electric cable | H144: no | I144: 75
A145: =IF(ISBLANK(H145),"",($E$8&"."&+(COUNTA(H$7:H145)))) -> 
A146: =IF(ISBLANK(H146),"",($E$8&"."&+(COUNTA(H$7:H146)))) ->  | D146: .4 | E146: Water main not exceeding 300mm dia
A147: =IF(ISBLANK(H147),"",($E$8&"."&+(COUNTA(H$7:H147)))) -> 5.25 | E147: (house connection pipes not measurable) | H147: no | I147: 75
A148: =IF(ISBLANK(H148),"",($E$8&"."&+(COUNTA(H$7:H148)))) -> 
A149: =IF(ISBLANK(H149),"",($E$8&"."&+(COUNTA(H$7:H149)))) -> 5.26 | D149: .5 | E149: Sewer main not exceeding 300mm dia | H149: no | I149: 50
A150: =IF(ISBLANK(H150),"",($E$8&"."&+(COUNTA(H$7:H150)))) -> 
A151: =IF(ISBLANK(H151),"",($E$8&"."&+(COUNTA(H$7:H151)))) -> 5.27 | D151: .6 | E151: Stormwater pipe not exceeding 600mm dia | H151: no | I151: 50
A152: =IF(ISBLANK(H152),"",($E$8&"."&+(COUNTA(H$7:H152)))) -> 
A153: =IF(ISBLANK(H153),"",($E$8&"."&+(COUNTA(H$7:H153)))) ->  | B153: 8.3.5 | C153: (b) | D153: Services that adjoin a trench
A154: =IF(ISBLANK(H154),"",($E$8&"."&+(COUNTA(H$7:H154)))) -> 
A155: =IF(ISBLANK(H155),"",($E$8&"."&+(COUNTA(H$7:H155)))) -> 5.28 | D155: .1 | E155: Electric cable | H155: m | I155: 300
A156: =IF(ISBLANK(H156),"",($E$8&"."&+(COUNTA(H$7:H156)))) -> 
A157: =IF(ISBLANK(H157),"",($E$8&"."&+(COUNTA(H$7:H157)))) ->  | D157: .4 | E157: Water main not exceeding 300mm dia
A158: =IF(ISBLANK(H158),"",($E$8&"."&+(COUNTA(H$7:H158)))) -> 5.29 | E158: (house connection pipes not measurable) | H158: m | I158: 400
A160: =IF(ISBLANK(H160),"",($E$8&"."&+(COUNTA(H$7:H160)))) -> 5.30 | D160: .5 | E160: Sewer main not exceeding 300mm dia | H160: m | I160: 400
A161: =IF(ISBLANK(H161),"",($E$8&"."&+(COUNTA(H$7:H161)))) -> 
A162: =IF(ISBLANK(H162),"",($E$8&"."&+(COUNTA(H$7:H172)))) -> 5.31 | D162: .6 | E162: Stormwater pipe not exceeding 600mm dia | H162: m | I162: 100
C164: REPAIR ROADS AND PAVING
A166: =IF(ISBLANK(H166),"",($E$8&"."&+(COUNTA(H$7:H166)))) ->  | B166: SANS | C166: FINISHING AND REPAIRING EXISTING ROAD
A167: =IF(ISBLANK(H167),"",($E$8&"."&+(COUNTA(H$7:H167)))) ->  | B167: 1200 DB | C167: CROSSINGS COMPLETE
A168: =IF(ISBLANK(H168),"",($E$8&"."&+(COUNTA(H$7:H168)))) ->  | B168: PSDB8
A169: =IF(ISBLANK(H169),"",($E$8&"."&+(COUNTA(H$7:H169)))) ->  | B169: 8.3.6.1 | C169: (a) | D169: Layerworks including extra over item 8.3.2 for
A170: =IF(ISBLANK(H170),"",($E$8&"."&+(COUNTA(H$7:H170)))) ->  | D170: carefull excavation and stockpiling of materials for
A171: =IF(ISBLANK(H171),"",($E$8&"."&+(COUNTA(H$7:H171)))) ->  | D171: re-use, or replacing with new material, including all
A172: =IF(ISBLANK(H172),"",($E$8&"."&+(COUNTA(H$7:H172)))) ->  | D172: accommodation of traffic and bypasses, complete
A173: =IF(ISBLANK(H173),"",($E$8&"."&+(COUNTA(H$7:H173)))) -> 
A174: =IF(ISBLANK(H174),"",($E$8&"."&+(COUNTA(H$7:H174)))) ->  | D174: .1 | E174: G5 gravel shoulders 150mm thick compacted to
A175: =IF(ISBLANK(H175),"",($E$8&"."&+(COUNTA(H$7:H175)))) -> 5.32 | E175: 93% mod AASHTO density | H175: m² | I175: 250
J178: Carried Forward
J179: Brought Forward
A180: =IF(ISBLANK(H180),"",($E$8&"."&+(COUNTA(H$7:H180)))) -> 
A181: =IF(ISBLANK(H181),"",($E$8&"."&+(COUNTA(H$7:H181)))) ->  | D181: .2 | E181: G7 selected layer 150mm thick compacted to
A182: =IF(ISBLANK(H182),"",($E$8&"."&+(COUNTA(H$7:H182)))) -> 5.33 | E182: 93% mod AASHTO density | H182: m² | I182: 1250
A183: =IF(ISBLANK(H183),"",($E$8&"."&+(COUNTA(H$7:H183)))) -> 
A184: =IF(ISBLANK(H184),"",($E$8&"."&+(COUNTA(H$7:H184)))) ->  | D184: .3 | E184: C4 stabilised subbase layer 150mm thick
A185: =IF(ISBLANK(H185),"",($E$8&"."&+(COUNTA(H$7:H185)))) -> 5.34 | E185: compacted to 95% mod AASHTO density | H185: m² | I185: 1250
A186: =IF(ISBLANK(H186),"",($E$8&"."&+(COUNTA(H$7:H186)))) -> 
A187: =IF(ISBLANK(H187),"",($E$8&"."&+(COUNTA(H$7:H187)))) ->  | D187: .4 | E187: G1 base layer 150mm thick compacted to
A188: =IF(ISBLANK(H188),"",($E$8&"."&+(COUNTA(H$7:H188)))) -> 5.35 | E188: 86% apparent density | H188: m² | I188: 1250
A189: =IF(ISBLANK(H189),"",($E$8&"."&+(COUNTA(H$7:H189)))) -> 
A190: =IF(ISBLANK(H190),"",($E$8&"."&+(COUNTA(H$7:H190)))) ->  | B190: 8.3.6.1 | C190: (b) | D190: Continuously graded medium asphalt, including
A191: =IF(ISBLANK(H191),"",($E$8&"."&+(COUNTA(H$7:H191)))) ->  | D191: prime and tack coat preparation
A192: =IF(ISBLANK(H192),"",($E$8&"."&+(COUNTA(H$7:H192)))) -> 
A193: =IF(ISBLANK(H193),"",($E$8&"."&+(COUNTA(H$7:H193)))) -> 5.36 | D193: .2 | E193: 30mm Thick | H193: m² | I193: 1250
A195: =IF(ISBLANK(H195),"",($E$8&"."&+(COUNTA(H$7:H195)))) ->  | C195: REPAIRING KERBING
A196: =IF(ISBLANK(H196),"",($E$8&"."&+(COUNTA(H$7:H196)))) -> 
A197: =IF(ISBLANK(H197),"",($E$8&"."&+(COUNTA(H$7:H197)))) -> 5.37 | C197: Remove precast concrete kerbing and set aside for re-use | H197: m | I197: 900
A198: =IF(ISBLANK(H198),"",($E$8&"."&+(COUNTA(H$7:H198)))) -> 
A199: =IF(ISBLANK(H199),"",($E$8&"."&+(COUNTA(H$7:H199)))) -> 5.38 | C199: Take from site precast concrete kerbing and re-install complete | H199: m | I199: 900
A201: =IF(ISBLANK(H201),"",($E$8&"."&+(COUNTA(H$7:H201)))) ->  | B201: PSMJ | C201: LIFTING EXISTING PAVING
A202: =IF(ISBLANK(H202),"",($E$8&"."&+(COUNTA(H$7:H202)))) ->  | B202: SANS
A203: =IF(ISBLANK(H203),"",($E$8&"."&+(COUNTA(H$7:H203)))) ->  | B203: 1200 MJ | C203: Lifting up existing paving blocks including neatly,
A204: =IF(ISBLANK(H204),"",($E$8&"."&+(COUNTA(H$7:H204)))) ->  | B204: 8.2.6 | C204: stacking on site designated by the Engineer
A205: =IF(ISBLANK(H205),"",($E$8&"."&+(COUNTA(H$7:H205)))) ->  | C205: (to be re-used, and re-use measured elsewhere)
A206: =IF(ISBLANK(H206),"",($E$8&"."&+(COUNTA(H$7:H206)))) -> 
A207: =IF(ISBLANK(H207),"",($E$8&"."&+(COUNTA(H$7:H207)))) -> 5.39 | C207: .1 | D207: Driveway or site paving (all types) | H207: m² | I207: 1250
A208: =IF(ISBLANK(H208),"",($E$8&"."&+(COUNTA(H$7:H208)))) -> 
A209: =IF(ISBLANK(H209),"",($E$8&"."&+(COUNTA(H$7:H209)))) ->  | C209: REINSTATEMENT OF EXISTING PAVING
A210: =IF(ISBLANK(H210),"",($E$8&"."&+(COUNTA(H$7:H210)))) -> 
A211: =IF(ISBLANK(H211),"",($E$8&"."&+(COUNTA(H$7:H211)))) ->  | B211: 8.2.8 | C211: Take from stockpile on site existing paving blocks
A212: =IF(ISBLANK(H212),"",($E$8&"."&+(COUNTA(H$7:H212)))) ->  | C212: and reinstate in similar position, including levelling
A213: =IF(ISBLANK(H213),"",($E$8&"."&+(COUNTA(H$7:H213)))) ->  | C213: and compacting earthworks to 93% mod AASHTO
A214: =IF(ISBLANK(H214),"",($E$8&"."&+(COUNTA(H$7:H214)))) ->  | C214: density, supply and lay new 20mm riversand bedding
A215: =IF(ISBLANK(H215),"",($E$8&"."&+(COUNTA(H$7:H215)))) ->  | C215: and re-lay existing bricks, compacting and brooming
A216: =IF(ISBLANK(H216),"",($E$8&"."&+(COUNTA(H$7:H216)))) ->  | C216: in plastesand into joints on completion
A217: =IF(ISBLANK(H217),"",($E$8&"."&+(COUNTA(H$7:H217)))) -> 
A218: =IF(ISBLANK(H218),"",($E$8&"."&+(COUNTA(H$7:H218)))) -> 5.40 | C218: .1 | D218: Driveway or site paving (all types) | H218: m² | I218: 1250
A220: 5.41 | C220: Procure to site paving blocks including levelling | H220: m² | I220: 250
C221: and compacting earthworks to 93% mod AASHTO
C222: density, supply and lay new 20mm riversand bedding
C223: and lay 60mm new bricks, compacting and brooming
C224: in plastesand into joints on completion
J236: Carried Forward
J237: Brought Forward
A239: =IF(ISBLANK(H239),"",($E$8&"."&+(COUNTA(H$7:H239)))) ->  | C239: CONCRETE DRIVEWAYS AND WALKWAYS ETC.
A240: =IF(ISBLANK(H240),"",($E$8&"."&+(COUNTA(H$7:H240)))) ->  | B240: SANS
A241: =IF(ISBLANK(H241),"",($E$8&"."&+(COUNTA(H$7:H241)))) -> 5.42 | B241: 1200 MK | C241: Demolish existing concrete, not exceeding 100mm | H241: m³ | I241: 300
A242: =IF(ISBLANK(H242),"",($E$8&"."&+(COUNTA(H$7:H242)))) ->  | C242: thickness, and spoil at an appropriate site found by
C243: the Contractor.
A245: =IF(ISBLANK(H245),"",($E$8&"."&+(COUNTA(H$7:H245)))) -> 5.43 | B245: 8.2.8 | C245: Cast insitu concrete, 25Mpa/19mm, to 100mm | H245: m³ | I245: 300
C246: thickness
B248: 8.2.10 | C248: Sealed joints to concrete driveways and walkways etc.
C250: (b) | D250: 10mm Sondor Jointex expansion joint 150mm
D251: high between concrete faces, including formwork
D252: and raking out 10mm expansion joint material
D253: to a depth of 20mm, prime with approved
D254: primer and fill joint with approved
A255: =IF(ISBLANK(H255),"",($E$8&"."&+(COUNTA(H$7:H255)))) -> 5.44 | D255: polyurethane sealer | H255: m | I255: 1000
A257: =IF(ISBLANK(H257),"",($E$8&"."&+(COUNTA(H$7:H257)))) ->  | B257: PSLB | C257: BEDDING FROM TRENCH EXCAVATIONS
A258: =IF(ISBLANK(H258),"",($E$8&"."&+(COUNTA(H$7:H258)))) ->  | B258: SANS
A259: =IF(ISBLANK(H259),"",($E$8&"."&+(COUNTA(H$7:H259)))) ->  | B259: 1200 LB | C259: Provision of bedding material from trench excavations
A260: =IF(ISBLANK(H260),"",($E$8&"."&+(COUNTA(H$7:H260)))) ->  | B260: 8.2.1
A261: =IF(ISBLANK(H261),"",($E$8&"."&+(COUNTA(H$7:H261)))) -> 5.45 | C261: (a) | D261: Selected granular material | H261: m³ | I261: 100
A262: =IF(ISBLANK(H262),"",($E$8&"."&+(COUNTA(H$7:H262)))) -> 
A263: =IF(ISBLANK(H263),"",($E$8&"."&+(COUNTA(H$7:H263)))) -> 5.46 | C263: (b) | D263: Selected fill material | H263: m³ | I263: 100
... 172 more rows

Sheet rebuild sewers
A1: ='A-P&G '!A1 -> Contract: RLM/OMM/0156/2024/25
A2: Part C2: Pricing Data
A3: Section C2.2: Bill of Quantities
A4: uPVC Sewers
A5: Item | B5: Payment | C5: Description | H5: Unit | I5: Qty | J5: Rate | K5: Amount
B6: Reference | J6: (R) | K6: (R)
B8: SANS | C8: BILL NO | E8: 6
B9: 1200 LD | C9: REBUILD SEWERS
A11: =IF(ISBLANK(H11),"",($E$8&"."&+(COUNTA(H$7:H11)))) ->  | C11: DEMOLITIONS
A13: =IF(ISBLANK(H13),"",($E$8&"."&+(COUNTA(H$7:H13)))) ->  | B13: SANS | C13: REMOVAL OF EXISTING SERVICES
A14: =IF(ISBLANK(H14),"",($E$8&"."&+(COUNTA(H$7:H14)))) ->  | B14: 1200 C
A15: =IF(ISBLANK(H15),"",($E$8&"."&+(COUNTA(H$7:H15)))) ->  | B15: 8.2.7 | C15: (a) | D15: Dismantle remove and spoil pipelines, powerlines,
A16: =IF(ISBLANK(H16),"",($E$8&"."&+(COUNTA(H$7:H16)))) ->  | D16: cables, etc (excavation, backfilling and removal of
A17: =IF(ISBLANK(H17),"",($E$8&"."&+(COUNTA(H$7:H17)))) ->  | D17: concrete, etc measured elsewhere)
A18: =IF(ISBLANK(H18),"",($E$8&"."&+(COUNTA(H$7:H18)))) -> 
A19: =IF(ISBLANK(H19),"",($E$8&"."&+(COUNTA(H$7:H19)))) -> 6.1 | D19: .1 | E19: 160mm uPVC sewer pipeline | H19: m | I19: 3924
A20: =IF(ISBLANK(H20),"",($E$8&"."&+(COUNTA(H$7:H20)))) -> 
A21: =IF(ISBLANK(H21),"",($E$8&"."&+(COUNTA(H$7:H21)))) ->  | C21: DEMOLISH AND SPOIL MATERIAL OFF SITE
A22: =IF(ISBLANK(H22),"",($E$8&"."&+(COUNTA(H$7:H22)))) -> 
A23: =IF(ISBLANK(H23),"",($E$8&"."&+(COUNTA(H$7:H23)))) ->  | C23: Demolish and spoil material for structures, buildings,
A24: =IF(ISBLANK(H24),"",($E$8&"."&+(COUNTA(H$7:H24)))) ->  | C24: etc at a spoil site established by the Contractor
A25: =IF(ISBLANK(H25),"",($E$8&"."&+(COUNTA(H$7:H25)))) -> 
A26: =IF(ISBLANK(H26),"",($E$8&"."&+(COUNTA(H$7:H26)))) ->  | B26: 8.2.8 | C26: (a) | D26: Sundry structures, etc
A27: =IF(ISBLANK(H27),"",($E$8&"."&+(COUNTA(H$7:H27)))) -> 
A28: =IF(ISBLANK(H28),"",($E$8&"."&+(COUNTA(H$7:H28)))) -> 6.2 | D28: .9 | E28: Existing sewer manhole complete (concrete cover with cover and frame to be delivered to Engineers office for storage) | H28: no | I28: 40
A29: =IF(ISBLANK(H29),"",($E$8&"."&+(COUNTA(H$7:H29)))) -> 
C30: CLEAR SITE
A32: =IF(ISBLANK(H32),"",($E$8&"."&+(COUNTA(H$7:H32)))) ->  | B32: SANS | C32: CLEAR AND GRUB SITE
A33: =IF(ISBLANK(H33),"",($E$8&"."&+(COUNTA(H$7:H33)))) ->  | B33: 1200 DB
A34: =IF(ISBLANK(H34),"",($E$8&"."&+(COUNTA(H$7:H34)))) ->  | B34: 8.3.1 | C34: (a) | D34: Clear and grub strips for (where not cleared within
A35: =IF(ISBLANK(H35),"",($E$8&"."&+(COUNTA(H$7:H35)))) ->  | D35: other clear and grub areas)
A36: =IF(ISBLANK(H36),"",($E$8&"."&+(COUNTA(H$7:H36)))) -> 
A37: =IF(ISBLANK(H37),"",($E$8&"."&+(COUNTA(H$7:H37)))) -> 6.3 | D37: .1 | E37: Pipeline 3m wide | H37: m | I37: 3924
A38: =IF(ISBLANK(H38),"",($E$8&"."&+(COUNTA(H$7:H38)))) -> 
C39: TRENCHING
C41: Note:
C42: Please note that dewatering of trenches must be priced under the P&G section of these bills of quantities under items 8.3.2.2.h and 8.4.2.2.h
A44: =IF(ISBLANK(H44),"",($E$8&"."&+(COUNTA(H$7:H44)))) ->  | B44: SANS | C44: EXCAVATION AND BACKFILLING
A45: =IF(ISBLANK(H45),"",($E$8&"."&+(COUNTA(H$7:H45)))) ->  | B45: 1200 DB
A46: =IF(ISBLANK(H46),"",($E$8&"."&+(COUNTA(H$7:H46)))) ->  | C46: Excavate in all materials, backfill and compact to 93%
A47: =IF(ISBLANK(H47),"",($E$8&"."&+(COUNTA(H$7:H47)))) ->  | C47: mod AASHTO density, and dispose of surplus and
A48: =IF(ISBLANK(H48),"",($E$8&"."&+(COUNTA(H$7:H48)))) ->  | C48: unsuitable materials for trenches
A49: =IF(ISBLANK(H49),"",($E$8&"."&+(COUNTA(H$7:H49)))) -> 
A50: =IF(ISBLANK(H50),"",($E$8&"."&+(COUNTA(H$7:H50)))) ->  | B50: 8.3.2 | C50: (a) | D50: .1 | E50: Up to 1m wide
A51: =IF(ISBLANK(H51),"",($E$8&"."&+(COUNTA(H$7:H51)))) -> 
A52: =IF(ISBLANK(H52),"",($E$8&"."&+(COUNTA(H$7:H52)))) -> 6.4 | E52: .2 | F52: Over 1m and up to 2m deep | H52: m³ | I52: 3330
A53: =IF(ISBLANK(H53),"",($E$8&"."&+(COUNTA(H$7:H53)))) -> 
A54: =IF(ISBLANK(H54),"",($E$8&"."&+(COUNTA(H$7:H54)))) -> 6.5 | E54: .3 | F54: Over 2m and up to 3m deep | H54: m³ | I54: 3112
A55: =IF(ISBLANK(H55),"",($E$8&"."&+(COUNTA(H$7:H55)))) -> 
A56: =IF(ISBLANK(H56),"",($E$8&"."&+(COUNTA(H$7:H56)))) -> 6.6 | E56: .4 | F56: Over 3m and up to 4m deep | H56: m³ | I56: 114
A57: =IF(ISBLANK(H57),"",($E$8&"."&+(COUNTA(H$7:H57)))) -> 
A58: =IF(ISBLANK(H58),"",($E$8&"."&+(COUNTA(H$7:H58)))) -> 6.7 | E58: .5 | F58: Over 4m and up to 5m deep | H58: m³ | I58: 22
A59: =IF(ISBLANK(H59),"",($E$8&"."&+(COUNTA(H$7:H59)))) -> 
A60: =IF(ISBLANK(H60),"",($E$8&"."&+(COUNTA(H$7:H60)))) -> 6.8 | E60: .6 | F60: Over 5m and up to 6m deep | H60: m³ | I60: 11
J67: Carried Forward
J68: Brought Forward
A70: =IF(ISBLANK(H70),"",($E$8&"."&+(COUNTA(H$7:H70)))) ->  | C70: DEFICIENCY IN BACKFILL MATERIAL
A71: =IF(ISBLANK(H71),"",($E$8&"."&+(COUNTA(H$7:H71)))) -> 
A72: =IF(ISBLANK(H72),"",($E$8&"."&+(COUNTA(H$7:H72)))) ->  | B72: 8.3.3 | C72: Excavation ancillaries
A73: =IF(ISBLANK(H73),"",($E$8&"."&+(COUNTA(H$7:H73)))) -> 
A74: =IF(ISBLANK(H74),"",($E$8&"."&+(COUNTA(H$7:H74)))) ->  | C74: .1 | D74: Make up deficiency in backfill material
A75: =IF(ISBLANK(H75),"",($E$8&"."&+(COUNTA(H$7:H75)))) -> 
A76: =IF(ISBLANK(H76),"",($E$8&"."&+(COUNTA(H$7:H76)))) -> 6.9 | D76: (a) | E76: From other necessary excavations on site | H76: m³ | I76: 100
A77: =IF(ISBLANK(H77),"",($E$8&"."&+(COUNTA(H$7:H77)))) -> 
A78: =IF(ISBLANK(H78),"",($E$8&"."&+(COUNTA(H$7:H78)))) ->  | D78: (c) | E78: By importation of G7 material from commercial
A79: =IF(ISBLANK(H79),"",($E$8&"."&+(COUNTA(H$7:H79)))) -> 6.10 | E79: sources selected by the Contractor | H79: m³ | I79: 150
A80: =IF(ISBLANK(H80),"",($E$8&"."&+(COUNTA(H$7:H158)))) -> 
A81: =IF(ISBLANK(H81),"",($E$8&"."&+(COUNTA(H$7:H81)))) ->  | C81: SHORING OF TRENCHES
A82: =IF(ISBLANK(H82),"",($E$8&"."&+(COUNTA(H$7:H82)))) -> 
A83: =IF(ISBLANK(H83),"",($E$8&"."&+(COUNTA(H$7:H83)))) ->  | B83: 8.3.4 | C83: (a) | D83: Shore trench opposite structure or service
A84: =IF(ISBLANK(H84),"",($E$8&"."&+(COUNTA(H$7:H84)))) -> 
A85: =IF(ISBLANK(H85),"",($E$8&"."&+(COUNTA(H$7:H85)))) -> 6.11 | D85: .1 | E85: Shoring of sewer trenches maximum 2m deep of approved method (both sides to be shored - measured as trench length and both sides to be priced in one measurement) | H85: m | I85: 50
A86: =IF(ISBLANK(H86),"",($E$8&"."&+(COUNTA(H$7:H86)))) -> 
A87: =IF(ISBLANK(H87),"",($E$8&"."&+(COUNTA(H$7:H87)))) -> 6.12 | D87: .2 | E87: Ditto maximum 4m deep | H87: m | I87: 40
A89: =IF(ISBLANK(H89),"",($E$8&"."&+(COUNTA(H$7:H89)))) -> 6.13 | D89: .3 | E89: Ditto maximum 6m deep | H89: m | I89: 10
C91: EXISTING SERVICES
A93: =IF(ISBLANK(H93),"",($E$8&"."&+(COUNTA(H$7:H93)))) ->  | C93: WORK TO EXISTING SERVICES
A94: =IF(ISBLANK(H94),"",($E$8&"."&+(COUNTA(H$7:H94)))) -> 
A95: =IF(ISBLANK(H95),"",($E$8&"."&+(COUNTA(H$7:H95)))) ->  | C95: Existing services that intersect or adjoin pipe trench
A96: =IF(ISBLANK(H96),"",($E$8&"."&+(COUNTA(H$7:H96)))) ->  | C96: excavations
A97: =IF(ISBLANK(H97),"",($E$8&"."&+(COUNTA(H$7:H97)))) -> 
A98: =IF(ISBLANK(H98),"",($E$8&"."&+(COUNTA(H$7:H98)))) ->  | B98: 8.3.5 | C98: (a) | D98: Services that intersect a trench
A99: =IF(ISBLANK(H99),"",($E$8&"."&+(COUNTA(H$7:H99)))) -> 
A100: =IF(ISBLANK(H100),"",($E$8&"."&+(COUNTA(H$7:H100)))) -> 6.14 | D100: .1 | E100: Electric cable | H100: no | I100: 75
A101: =IF(ISBLANK(H101),"",($E$8&"."&+(COUNTA(H$7:H101)))) -> 
A102: =IF(ISBLANK(H102),"",($E$8&"."&+(COUNTA(H$7:H102)))) ->  | D102: .4 | E102: Water main not exceeding 300mm dia
A103: =IF(ISBLANK(H103),"",($E$8&"."&+(COUNTA(H$7:H103)))) -> 6.15 | E103: (house connection pipes not measurable) | H103: no | I103: 75
A104: =IF(ISBLANK(H104),"",($E$8&"."&+(COUNTA(H$7:H104)))) -> 
A105: =IF(ISBLANK(H105),"",($E$8&"."&+(COUNTA(H$7:H105)))) -> 6.16 | D105: .5 | E105: Sewer main not exceeding 300mm dia | H105: no | I105: 50
A106: =IF(ISBLANK(H106),"",($E$8&"."&+(COUNTA(H$7:H106)))) -> 
A107: =IF(ISBLANK(H107),"",($E$8&"."&+(COUNTA(H$7:H107)))) -> 6.17 | D107: .6 | E107: Stormwater pipe not exceeding 600mm dia | H107: no | I107: 50
A108: =IF(ISBLANK(H108),"",($E$8&"."&+(COUNTA(H$7:H108)))) -> 
A109: =IF(ISBLANK(H109),"",($E$8&"."&+(COUNTA(H$7:H109)))) ->  | B109: 8.3.5 | C109: (b) | D109: Services that adjoin a trench
A110: =IF(ISBLANK(H110),"",($E$8&"."&+(COUNTA(H$7:H110)))) -> 
A111: =IF(ISBLANK(H111),"",($E$8&"."&+(COUNTA(H$7:H111)))) -> 6.18 | D111: .1 | E111: Electric cable | H111: m | I111: 300
A112: =IF(ISBLANK(H112),"",($E$8&"."&+(COUNTA(H$7:H112)))) -> 
A113: =IF(ISBLANK(H113),"",($E$8&"."&+(COUNTA(H$7:H113)))) ->  | D113: .4 | E113: Water main not exceeding 300mm dia
A114: =IF(ISBLANK(H114),"",($E$8&"."&+(COUNTA(H$7:H114)))) -> 6.19 | E114: (house connection pipes not measurable) | H114: m | I114: 400
A116: =IF(ISBLANK(H116),"",($E$8&"."&+(COUNTA(H$7:H116)))) -> 6.20 | D116: .5 | E116: Sewer main not exceeding 300mm dia | H116: m | I116: 400
A117: =IF(ISBLANK(H117),"",($E$8&"."&+(COUNTA(H$7:H117)))) -> 
A118: =IF(ISBLANK(H118),"",($E$8&"."&+(COUNTA(H$7:H140)))) -> 6.21 | D118: .6 | E118: Stormwater pipe not exceeding 600mm dia | H118: m | I118: 400
J129: Carried Forward
J130: Brought Forward
C132: REPAIR ROADS AND PAVING
A134: =IF(ISBLANK(H134),"",($E$8&"."&+(COUNTA(H$7:H134)))) ->  | B134: SANS | C134: FINISHING AND REPAIRING EXISTING ROAD
A135: =IF(ISBLANK(H135),"",($E$8&"."&+(COUNTA(H$7:H135)))) ->  | B135: 1200 DB | C135: CROSSINGS COMPLETE
A136: =IF(ISBLANK(H136),"",($E$8&"."&+(COUNTA(H$7:H136)))) -> 
A137: =IF(ISBLANK(H137),"",($E$8&"."&+(COUNTA(H$7:H137)))) ->  | B137: 8.3.6.1 | C137: (a) | D137: Layerworks including extra over item 8.3.2 for
A138: =IF(ISBLANK(H138),"",($E$8&"."&+(COUNTA(H$7:H138)))) ->  | D138: carefull excavation and stockpiling of materials for
A139: =IF(ISBLANK(H139),"",($E$8&"."&+(COUNTA(H$7:H139)))) ->  | D139: re-use, or replacing with new material, including all
A140: =IF(ISBLANK(H140),"",($E$8&"."&+(COUNTA(H$7:H140)))) ->  | D140: accommodation of traffic and bypasses, complete
A141: =IF(ISBLANK(H141),"",($E$8&"."&+(COUNTA(H$7:H141)))) -> 
A142: =IF(ISBLANK(H142),"",($E$8&"."&+(COUNTA(H$7:H142)))) ->  | D142: .1 | E142: G5 gravel shoulders 150mm thick compacted to
A143: =IF(ISBLANK(H143),"",($E$8&"."&+(COUNTA(H$7:H143)))) -> 6.22 | E143: 93% mod AASHTO density | H143: m² | I143: 250
A144: =IF(ISBLANK(H144),"",($E$8&"."&+(COUNTA(H$7:H144)))) -> 
A145: =IF(ISBLANK(H145),"",($E$8&"."&+(COUNTA(H$7:H145)))) ->  | D145: .2 | E145: G7 selected layer 150mm thick compacted to
A146: =IF(ISBLANK(H146),"",($E$8&"."&+(COUNTA(H$7:H146)))) -> 6.23 | E146: 93% mod AASHTO density | H146: m² | I146: 1250
A147: =IF(ISBLANK(H147),"",($E$8&"."&+(COUNTA(H$7:H147)))) -> 
A148: =IF(ISBLANK(H148),"",($E$8&"."&+(COUNTA(H$7:H148)))) ->  | D148: .3 | E148: C4 stabilised subbase layer 150mm thick
A149: =IF(ISBLANK(H149),"",($E$8&"."&+(COUNTA(H$7:H149)))) -> 6.24 | E149: compacted to 95% mod AASHTO density | H149: m² | I149: 1250
A150: =IF(ISBLANK(H150),"",($E$8&"."&+(COUNTA(H$7:H150)))) -> 
A151: =IF(ISBLANK(H151),"",($E$8&"."&+(COUNTA(H$7:H151)))) ->  | D151: .4 | E151: G1 base layer 150mm thick compacted to
A152: =IF(ISBLANK(H152),"",($E$8&"."&+(COUNTA(H$7:H152)))) -> 6.25 | E152: 86% apparent density | H152: m² | I152: 1250
A153: =IF(ISBLANK(H153),"",($E$8&"."&+(COUNTA(H$7:H153)))) -> 
A154: =IF(ISBLANK(H154),"",($E$8&"."&+(COUNTA(H$7:H154)))) ->  | B154: 8.3.6.1 | C154: (b) | D154: Continuously graded medium asphalt, including
A155: =IF(ISBLANK(H155),"",($E$8&"."&+(COUNTA(H$7:H155)))) ->  | D155: prime and tack coat preparation
A156: =IF(ISBLANK(H156),"",($E$8&"."&+(COUNTA(H$7:H156)))) -> 
A157: =IF(ISBLANK(H157),"",($E$8&"."&+(COUNTA(H$7:H157)))) -> 6.26 | D157: .2 | E157: 30mm Thick | H157: m² | I157: 1250
A158: =IF(ISBLANK(H158),"",($E$8&"."&+(COUNTA(H$7:H158)))) -> 
A159: =IF(ISBLANK(H159),"",($E$8&"."&+(COUNTA(H$7:H159)))) ->  | C159: REPAIRING KERBING
A160: =IF(ISBLANK(H160),"",($E$8&"."&+(COUNTA(H$7:H160)))) -> 
A161: =IF(ISBLANK(H161),"",($E$8&"."&+(COUNTA(H$7:H161)))) -> 6.27 | C161: Remove precast concrete kerbing and set aside for re-use | H161: m | I161: 900
A162: =IF(ISBLANK(H162),"",($E$8&"."&+(COUNTA(H$7:H162)))) -> 
A163: =IF(ISBLANK(H163),"",($E$8&"."&+(COUNTA(H$7:H163)))) -> 6.28 | C163: Take from site precast concrete kerbing and re-install complete | H163: m | I163: 900
A165: =IF(ISBLANK(H165),"",($E$8&"."&+(COUNTA(H$7:H165)))) ->  | B165: SANS | C165: LIFTING EXISTING PAVING
A166: =IF(ISBLANK(H166),"",($E$8&"."&+(COUNTA(H$7:H166)))) ->  | B166: 1200 MJ
A167: =IF(ISBLANK(H167),"",($E$8&"."&+(COUNTA(H$7:H167)))) ->  | B167: 8.2.6 | C167: Lifting up existing paving blocks including neatly,
A168: =IF(ISBLANK(H168),"",($E$8&"."&+(COUNTA(H$7:H168)))) ->  | C168: stacking on site designated by the Engineer
A169: =IF(ISBLANK(H169),"",($E$8&"."&+(COUNTA(H$7:H169)))) ->  | C169: (to be re-used, and re-use measured elsewhere)
A170: =IF(ISBLANK(H170),"",($E$8&"."&+(COUNTA(H$7:H170)))) -> 
A171: =IF(ISBLANK(H171),"",($E$8&"."&+(COUNTA(H$7:H171)))) -> 6.29 | C171: .1 | D171: Driveway or site paving (all types) | H171: m² | I171: 1250
A172: =IF(ISBLANK(H172),"",($E$8&"."&+(COUNTA(H$7:H172)))) -> 
A173: =IF(ISBLANK(H173),"",($E$8&"."&+(COUNTA(H$7:H173)))) ->  | C173: REINSTATEMENT OF EXISTING PAVING
A174: =IF(ISBLANK(H174),"",($E$8&"."&+(COUNTA(H$7:H174)))) -> 
A175: =IF(ISBLANK(H175),"",($E$8&"."&+(COUNTA(H$7:H175)))) ->  | B175: 8.2.8 | C175: Take from stockpile on site existing paving blocks
A176: =IF(ISBLANK(H176),"",($E$8&"."&+(COUNTA(H$7:H176)))) ->  | C176: and reinstate in similar position, including levelling
A177: =IF(ISBLANK(H177),"",($E$8&"."&+(COUNTA(H$7:H177)))) ->  | C177: and compacting earthworks to 93% mod AASHTO
A178: =IF(ISBLANK(H178),"",($E$8&"."&+(COUNTA(H$7:H178)))) ->  | C178: density, supply and lay new 20mm riversand bedding
A179: =IF(ISBLANK(H179),"",($E$8&"."&+(COUNTA(H$7:H179)))) ->  | C179: and re-lay existing bricks, compacting and brooming
A180: =IF(ISBLANK(H180),"",($E$8&"."&+(COUNTA(H$7:H180)))) ->  | C180: in plastesand into joints on completion
A181: =IF(ISBLANK(H181),"",($E$8&"."&+(COUNTA(H$7:H181)))) -> 
A182: =IF(ISBLANK(H182),"",($E$8&"."&+(COUNTA(H$7:H182)))) -> 6.30 | C182: .1 | D182: Driveway or site paving (all types) | H182: m² | I182: 1250
A186: 4.43 | C186: Procure to site paving blocks including levelling | H186: m² | I186: 200
C187: and compacting earthworks to 93% mod AASHTO
C188: density, supply and lay new 20mm riversand bedding
C189: and lay 60mm new bricks, compacting and brooming
C190: in plastesand into joints on completion
J193: Carried Forward
J194: Brought Forward
A196: =IF(ISBLANK(H196),"",($E$8&"."&+(COUNTA(H$7:H196)))) ->  | B196: SANS | C196: CONCRETE DRIVEWAYS AND WALKWAYS ETC.
A197: =IF(ISBLANK(H197),"",($E$8&"."&+(COUNTA(H$7:H197)))) ->  | B197: 1200 MK
A198: =IF(ISBLANK(H198),"",($E$8&"."&+(COUNTA(H$7:H198)))) -> 6.32 | C198: Demolish existing concrete, not exceeding 100mm | H198: m³ | I198: 300
A199: =IF(ISBLANK(H199),"",($E$8&"."&+(COUNTA(H$7:H199)))) ->  | C199: thickness, and spoil at an appropriate site found by
C200: the Contractor.
A202: =IF(ISBLANK(H202),"",($E$8&"."&+(COUNTA(H$7:H202)))) -> 6.33 | B202: 8.2.8 | C202: Cast insitu concrete, 25Mpa/19mm, to 100mm | H202: m³ | I202: 300
C203: thickness
B205: 8.2.10 | C205: Sealed joints to concrete driveways and walkways etc.
C207: (b) | D207: 10mm Sondor Jointex expansion joint 150mm
D208: high between concrete faces, including formwork
D209: and raking out 10mm expansion joint material
D210: to a depth of 20mm, prime with approved
D211: primer and fill joint with approved
A212: =IF(ISBLANK(H212),"",($E$8&"."&+(COUNTA(H$7:H212)))) -> 6.34 | D212: polyurethane sealer | H212: m | I212: 1000
A214: =IF(ISBLANK(H214),"",($E$8&"."&+(COUNTA(H$7:H214)))) ->  | B214: SANS | C214: BEDDING FROM TRENCH EXCAVATIONS
A215: =IF(ISBLANK(H215),"",($E$8&"."&+(COUNTA(H$7:H215)))) ->  | B215: 1200 LB
A216: =IF(ISBLANK(H216),"",($E$8&"."&+(COUNTA(H$7:H216)))) ->  | B216: 8.2.1 | C216: Provision of bedding material from trench excavations
A217: =IF(ISBLANK(H217),"",($E$8&"."&+(COUNTA(H$7:H217)))) -> 
A218: =IF(ISBLANK(H218),"",($E$8&"."&+(COUNTA(H$7:H218)))) -> 6.35 | C218: (a) | D218: Selected granular material | H218: m³ | I218: 100
A219: =IF(ISBLANK(H219),"",($E$8&"."&+(COUNTA(H$7:H219)))) -> 
A220: =IF(ISBLANK(H220),"",($E$8&"."&+(COUNTA(H$7:H220)))) -> 6.36 | C220: (b) | D220: Selected fill material | H220: m³ | I220: 100
A221: =IF(ISBLANK(H221),"",($E$8&"."&+(COUNTA(H$7:H221)))) -> 
A222: =IF(ISBLANK(H222),"",($E$8&"."&+(COUNTA(H$7:H222)))) ->  | C222: BEDDING FROM OTHER EXCAVATIONS ON SITE
A223: =IF(ISBLANK(H223),"",($E$8&"."&+(COUNTA(H$7:H223)))) -> 
A224: =IF(ISBLANK(H224),"",($E$8&"."&+(COUNTA(H$7:H224)))) ->  | B224: 8.2.2 | C224: .1 | D224: Provision of bedding material by importation from
A225: =IF(ISBLANK(H225),"",($E$8&"."&+(COUNTA(H$7:H225)))) ->  | D225: other necessary excavations within the freehaul
A226: =IF(ISBLANK(H226),"",($E$8&"."&+(COUNTA(H$7:H226)))) ->  | D226: distance
A227: =IF(ISBLANK(H227),"",($E$8&"."&+(COUNTA(H$7:H227)))) -> 
A228: =IF(ISBLANK(H228),"",($E$8&"."&+(COUNTA(H$7:H228)))) -> 6.37 | D228: (a) | E228: Selected granular material | H228: m³ | I228: 100
A229: =IF(ISBLANK(H229),"",($E$8&"."&+(COUNTA(H$7:H229)))) -> 
A230: =IF(ISBLANK(H230),"",($E$8&"."&+(COUNTA(H$7:H230)))) -> 6.38 | D230: (b) | E230: Selected fill material | H230: m³ | I230: 100
A231: =IF(ISBLANK(H231),"",($E$8&"."&+(COUNTA(H$7:H231)))) -> 
A232: =IF(ISBLANK(H232),"",($E$8&"."&+(COUNTA(H$7:H232)))) ->  | C232: BEDDING FROM COMMERCIAL SOURCES
A233: =IF(ISBLANK(H233),"",($E$8&"."&+(COUNTA(H$7:H233)))) -> 
A234: =IF(ISBLANK(H234),"",($E$8&"."&+(COUNTA(H$7:H234)))) ->  | B234: 8.2.2 | C234: .3 | D234: Provision of bedding material by importation from
A235: =IF(ISBLANK(H235),"",($E$8&"."&+(COUNTA(H$7:H235)))) ->  | D235: commercial sources selected by the Contractor
A236: =IF(ISBLANK(H236),"",($E$8&"."&+(COUNTA(H$7:H236)))) -> 
A237: =IF(ISBLANK(H237),"",($E$8&"."&+(COUNTA(H$7:H237)))) -> 6.39 | D237: (a) | E237: Selected granular material | H237: m³ | I237: 500
A238: =IF(ISBLANK(H238),"",($E$8&"."&+(COUNTA(H$7:H238)))) -> 
A239: =IF(ISBLANK(H239),"",($E$8&"."&+(COUNTA(H$7:H239)))) -> 6.40 | D239: (b) | E239: Selected fill material | H239: m³ | I239: 500
A241: =IF(ISBLANK(H241),"",($E$8&"."&+(COUNTA(H$7:H241)))) -> 6.41 | D241: (c) | E241: 19mm Crushed stone drainage material | H241: m³ | I241: =450*0.2 -> 90
... 96 more rows

Sheet existing sewers
A1: ='A-P&G '!A1 -> Contract: RLM/OMM/0156/2024/25
A2: Part C2: Pricing Data
A3: Section C2.2: Bill of Quantities
A4: uPVC Sewers
A5: Item | B5: Payment | C5: Description | H5: Unit | I5: Qty | J5: Rate | K5: Amount
B6: Reference | J6: (R) | K6: (R)
B8: SANS | C8: BILL NO | E8: 7
B9: 1200 LD | C9: EXISTING SEWERS
A11: =IF(ISBLANK(H11),"",($E$8&"."&+(COUNTA(H$7:H11)))) ->  | C11: CLEANING SEWERS
A13: =IF(ISBLANK(H13),"",($E$8&"."&+(COUNTA(H$7:H13)))) ->  | C13: CLEARING OF EXISTING SEWER LINES
A14: =IF(ISBLANK(H14),"",($E$8&"."&+(COUNTA(H$7:H14)))) -> 
A15: =IF(ISBLANK(H15),"",($E$8&"."&+(COUNTA(H$7:H15)))) ->  | B15: 8.2.13 | C15: Cleaning of existing sewer lines by approved method
A16: =IF(ISBLANK(H16),"",($E$8&"."&+(COUNTA(H$7:H16)))) ->  | C16: and hand over in working condition
A17: =IF(ISBLANK(H17),"",($E$8&"."&+(COUNTA(H$7:H17)))) -> 
A18: =IF(ISBLANK(H18),"",($E$8&"."&+(COUNTA(H$7:H18)))) -> 7.1 | C18: (b) | D18: 160mm Dia sewer line | H18: m | I18: 1652
A19: =IF(ISBLANK(H19),"",($E$8&"."&+(COUNTA(H$7:H19)))) -> 
A20: =IF(ISBLANK(H20),"",($E$8&"."&+(COUNTA(H$7:H20)))) ->  | C20: CLEANING OF EXISTING MANHOLES
A21: =IF(ISBLANK(H21),"",($E$8&"."&+(COUNTA(H$7:H21)))) -> 
A22: =IF(ISBLANK(H22),"",($E$8&"."&+(COUNTA(H$7:H22)))) ->  | B22: 8.2.13 | C22: Cleaning of existing manholes by approved method
A23: =IF(ISBLANK(H23),"",($E$8&"."&+(COUNTA(H$7:H23)))) ->  | C23: and hand over in working condition
A24: =IF(ISBLANK(H24),"",($E$8&"."&+(COUNTA(H$7:H24)))) -> 
A25: =IF(ISBLANK(H25),"",($E$8&"."&+(COUNTA(H$7:H25)))) -> 7.2 | C25: (p) | D25: Manhole (all sizes and depths) | H25: no | I25: 51
A26: =IF(ISBLANK(H26),"",($E$8&"."&+(COUNTA(H$7:H26)))) -> 
A27: =IF(ISBLANK(H27),"",($E$8&"."&+(COUNTA(H$7:H27)))) ->  | C27: CCTV PIPE INSPECTION OF EXISTING SEWERS
A28: =IF(ISBLANK(H28),"",($E$8&"."&+(COUNTA(H$7:H28)))) -> 
A29: =IF(ISBLANK(H29),"",($E$8&"."&+(COUNTA(H$7:H29)))) ->  | C29: CCTV pipe inspection of existing pipework complete
A30: =IF(ISBLANK(H30),"",($E$8&"."&+(COUNTA(H$7:H30)))) -> 
A31: =IF(ISBLANK(H31),"",($E$8&"."&+(COUNTA(H$7:H31)))) -> 7.3 | C31: (b) | D31: 160mm Dia sewer line | H31: m | I31: 1652
A69: =IF(ISBLANK(H69),"",($E$8&"."&+(COUNTA(H$7:H69)))) ->  | C69: =C8 -> BILL NO | E69: 7
A70: =IF(ISBLANK(H70),"",($E$8&"."&+(COUNTA(H$7:H70)))) ->  | C70: uPVC SEWERS
A71: =IF(ISBLANK(H71),"",($E$8&"."&+(COUNTA(H$7:H71)))) ->  | C71: Carried forward to Summary of Bills | J71: Total

Sheet sewers on stands
A1: ='A-P&G '!A1 -> Contract: RLM/OMM/0156/2024/25
A2: Part C2: Pricing Data
A3: Section C2.2: Bill of Quantities
A4: Sewers on stands
A5: Item | B5: Payment | C5: Description | H5: Unit | I5: Qty | J5: Rate | K5: Amount
B6: Reference | J6: (R) | K6: (R)
C8: BILL NO | E8: 8
C9: SEWERS ON EXISTING STANDS
C11: LABOUR INTENSIVE WORK
C13: Note:
C15: Work inside residential stands is to be constructed using labour intensive methods to minimise damage to existing structures and services.
C17: Contractors is to allow for this in their tender rates and no claims for additional costs will be entertained
C19: Labour intensive work will be indicated in the payment reference column with the letters "LI"
C21: REMOVAL OF FENCING AND WALLS
A23: =IF(ISBLANK(H23),"",($E$8&"."&+(COUNTA(H$7:H23)))) ->  | B23: SANS | C23: REMOVAL OF FENCES, BOUNDARY WALLS, ETC
A24: =IF(ISBLANK(H24),"",($E$8&"."&+(COUNTA(H$7:H24)))) ->  | B24: 1200 C | C24: AND STOCKPILE MATERIAL FOR RE-USE
A25: =IF(ISBLANK(H25),"",($E$8&"."&+(COUNTA(H$7:H25)))) -> 
A26: =IF(ISBLANK(H26),"",($E$8&"."&+(COUNTA(H$7:H26)))) ->  | C26: Note:
A27: =IF(ISBLANK(H27),"",($E$8&"."&+(COUNTA(H$7:H27)))) ->  | C27: All existing material removed and to be re-used for
A28: =IF(ISBLANK(H28),"",($E$8&"."&+(COUNTA(H$7:H28)))) ->  | C28: re-erection later, must be stockpiled neatly on a site
A29: =IF(ISBLANK(H29),"",($E$8&"."&+(COUNTA(H$7:H29)))) ->  | C29: designated by the Engineer and protected from
A30: =IF(ISBLANK(H30),"",($E$8&"."&+(COUNTA(H$7:H30)))) ->  | C30: damage or theft
A32: =IF(ISBLANK(H32),"",($E$8&"."&+(COUNTA(H$7:H32)))) -> 
A33: =IF(ISBLANK(H33),"",($E$8&"."&+(COUNTA(H$7:H33)))) ->  | B33: 8.2.5 | C33: Taking down existing fences
A34: =IF(ISBLANK(H34),"",($E$8&"."&+(COUNTA(H$7:H34)))) -> 
A35: =IF(ISBLANK(H35),"",($E$8&"."&+(COUNTA(H$7:H35)))) -> 8.1 | B35: LI | C35: (a) | D35: Fencing maximum 1,8m high | H35: m | I35: 410
A36: =IF(ISBLANK(H36),"",($E$8&"."&+(COUNTA(H$7:H36)))) -> 
A37: =IF(ISBLANK(H37),"",($E$8&"."&+(COUNTA(H$7:H37)))) ->  | B37: 8.2.13 | C37: Taking down existing precast concrete boundary walls
A38: =IF(ISBLANK(H38),"",($E$8&"."&+(COUNTA(H$7:H38)))) -> 
A39: =IF(ISBLANK(H39),"",($E$8&"."&+(COUNTA(H$7:H39)))) -> 8.2 | B39: LI | C39: (b) | D39: Precast concrete boundary walls maximum 1,8m high | H39: m | I39: 100
A40: =IF(ISBLANK(H40),"",($E$8&"."&+(COUNTA(H$7:H40)))) -> 
A41: =IF(ISBLANK(H41),"",($E$8&"."&+(COUNTA(H$7:H41)))) ->  | B41: 8.2.14 | C41: Taking down existing brick boundary walls and spoil
A42: =IF(ISBLANK(H42),"",($E$8&"."&+(COUNTA(H$7:H42)))) ->  | C42: material except bricks - bricks to be cleaned and stacked
A43: =IF(ISBLANK(H43),"",($E$8&"."&+(COUNTA(H$7:H43)))) ->  | C43: on site
A44: =IF(ISBLANK(H44),"",($E$8&"."&+(COUNTA(H$7:H44)))) -> 
A45: =IF(ISBLANK(H45),"",($E$8&"."&+(COUNTA(H$7:H45)))) ->  | B45: LI | C45: (a) | D45: 115mm Thick brick boundary wall including pilasters,
A46: =IF(ISBLANK(H46),"",($E$8&"."&+(COUNTA(H$7:H46)))) -> 8.3 | D46: etc maximum 1,8m high | H46: m | I46: 150
A47: =IF(ISBLANK(H47),"",($E$8&"."&+(COUNTA(H$7:H47)))) -> 
A48: =IF(ISBLANK(H48),"",($E$8&"."&+(COUNTA(H$7:H48)))) -> 8.4 | B48: LI | C48: (c) | D48: 230mm Thick brick boundary wall maximum 1,8m high | H48: m | I48: 200
J61: Carried Forward
J62: Brought Forward
C64: REPAIR OF FENCING AND WALLS
A66: =IF(ISBLANK(H66),"",($E$8&"."&+(COUNTA(H$7:H66)))) ->  | C66: REINSTATEMENT OF FENCES, BOUNDARY
A67: =IF(ISBLANK(H67),"",($E$8&"."&+(COUNTA(H$7:H67)))) ->  | C67: WALLS, ETC
A68: =IF(ISBLANK(H68),"",($E$8&"."&+(COUNTA(H$7:H68)))) -> 
A69: =IF(ISBLANK(H69),"",($E$8&"."&+(COUNTA(H$7:H69)))) ->  | B69: 8.2.15 | C69: Take from stockpile on site existing fences and reinstate
A70: =IF(ISBLANK(H70),"",($E$8&"."&+(COUNTA(H$7:H70)))) ->  | C70: in similar position including replacing missing or damaged
A71: =IF(ISBLANK(H71),"",($E$8&"."&+(COUNTA(H$7:H71)))) ->  | C71: elements, etc
A72: =IF(ISBLANK(H72),"",($E$8&"."&+(COUNTA(H$7:H72)))) -> 
A73: =IF(ISBLANK(H73),"",($E$8&"."&+(COUNTA(H$7:H73)))) -> 8.5 | B73: LI | C73: (a) | D73: Fencing maximum 1,8m high | H73: m | I73: 410
A74: =IF(ISBLANK(H74),"",($E$8&"."&+(COUNTA(H$7:H74)))) -> 
A75: =IF(ISBLANK(H75),"",($E$8&"."&+(COUNTA(H$7:H75)))) ->  | B75: 8.2.18 | C75: Take from stockpile on site existing precast concrete
A76: =IF(ISBLANK(H76),"",($E$8&"."&+(COUNTA(H$7:H76)))) ->  | C76: boundary wall and reinstate in similar position including
A77: =IF(ISBLANK(H77),"",($E$8&"."&+(COUNTA(H$7:H77)))) ->  | C77: replacing missing or damaged elements, etc
A78: =IF(ISBLANK(H78),"",($E$8&"."&+(COUNTA(H$7:H78)))) -> 
A79: =IF(ISBLANK(H79),"",($E$8&"."&+(COUNTA(H$7:H79)))) -> 8.6 | B79: LI | C79: (a) | D79: Precast concrete boundary walls maximum 1,8m high | H79: m | I79: 100
A80: =IF(ISBLANK(H80),"",($E$8&"."&+(COUNTA(H$7:H80)))) -> 
A81: =IF(ISBLANK(H81),"",($E$8&"."&+(COUNTA(H$7:H81)))) ->  | B81: 8.2.19 | C81: Take from stockpile on site existing bricks and reinstate
A82: =IF(ISBLANK(H82),"",($E$8&"."&+(COUNTA(H$7:H82)))) ->  | C82: brick walls in similar position including new concrete
A83: =IF(ISBLANK(H83),"",($E$8&"."&+(COUNTA(H$7:H83)))) ->  | C83: foundation, cement mortar and one coat cement plaster
A84: =IF(ISBLANK(H84),"",($E$8&"."&+(COUNTA(H$7:H84)))) ->  | C84: or face brick on both sides, including replacing missing or
A85: =IF(ISBLANK(H85),"",($E$8&"."&+(COUNTA(H$7:H85)))) ->  | C85: damaged bricks, etc
A86: =IF(ISBLANK(H86),"",($E$8&"."&+(COUNTA(H$7:H86)))) -> 
A87: =IF(ISBLANK(H87),"",($E$8&"."&+(COUNTA(H$7:H87)))) ->  | B87: LI | C87: (a) | D87: 115mm Thick brick boundary wall including pilasters,
A88: =IF(ISBLANK(H88),"",($E$8&"."&+(COUNTA(H$7:H88)))) -> 8.7 | D88: etc maximum 1,8m high | H88: m | I88: 150
A89: =IF(ISBLANK(H89),"",($E$8&"."&+(COUNTA(H$7:H89)))) -> 
A90: =IF(ISBLANK(H90),"",($E$8&"."&+(COUNTA(H$7:H90)))) -> 8.8 | B90: LI | C90: (c) | D90: 230mm Thick brick boundary wall maximum 1,8m high | H90: m | I90: 100
A91: =IF(ISBLANK(H91),"",($E$8&"."&+(COUNTA(H$7:H91)))) -> 
A92: =IF(ISBLANK(H92),"",($E$8&"."&+(COUNTA(H$7:H92)))) ->  | C92: DEMOLISH AND SPOIL MATERIAL OFF SITE
A93: =IF(ISBLANK(H93),"",($E$8&"."&+(COUNTA(H$7:H93)))) -> 
A94: =IF(ISBLANK(H94),"",($E$8&"."&+(COUNTA(H$7:H94)))) ->  | C94: Demolish and spoil material for structures, buildings,
A95: =IF(ISBLANK(H95),"",($E$8&"."&+(COUNTA(H$7:H95)))) ->  | C95: etc at a spoil site established by the Contractor
A96: =IF(ISBLANK(H96),"",($E$8&"."&+(COUNTA(H$7:H96)))) -> 
A97: =IF(ISBLANK(H97),"",($E$8&"."&+(COUNTA(H$7:H97)))) ->  | B97: 8.2.8 | C97: (a) | D97: Sundry structures, etc
A98: =IF(ISBLANK(H98),"",($E$8&"."&+(COUNTA(H$7:H98)))) -> 
A99: =IF(ISBLANK(H99),"",($E$8&"."&+(COUNTA(H$7:H99)))) -> 8.9 | B99: LI | D99: .3 | E99: Mass concrete structures | H99: m³ | I99: 5
A100: =IF(ISBLANK(H100),"",($E$8&"."&+(COUNTA(H$7:H100)))) -> 
A101: =IF(ISBLANK(H101),"",($E$8&"."&+(COUNTA(H$7:H101)))) -> 8.10 | B101: LI | D101: .4 | E101: Reinforced concrete structures | H101: m³ | I101: 5
A102: =IF(ISBLANK(H102),"",($E$8&"."&+(COUNTA(H$7:H102)))) -> 
A103: =IF(ISBLANK(H103),"",($E$8&"."&+(COUNTA(H$7:H103)))) -> 8.11 | B103: LI | D103: .5 | E103: 150mm Thick concrete paving | H103: m² | I103: 100
A104: =IF(ISBLANK(H104),"",($E$8&"."&+(COUNTA(H$7:H104)))) -> 
A105: =IF(ISBLANK(H105),"",($E$8&"."&+(COUNTA(H$7:H105)))) -> 8.12 | B105: LI | D105: .6 | E105: 150mm Thick reinforced concrete paving | H105: m² | I105: 100
A106: =IF(ISBLANK(H106),"",($E$8&"."&+(COUNTA(H$7:H106)))) -> 
A107: =IF(ISBLANK(H107),"",($E$8&"."&+(COUNTA(H$7:H107)))) -> 8.13 | B107: LI | D107: .7 | E107: Concrete kerbing (all types and sizes) | H107: m | I107: 50
A108: =IF(ISBLANK(H108),"",($E$8&"."&+(COUNTA(H$7:H108)))) -> 
A109: =IF(ISBLANK(H109),"",($E$8&"."&+(COUNTA(H$7:H109)))) -> 8.14 | B109: LI | D109: .8 | E109: Mass brickwork structures | H109: m³ | I109: 30
J120: Carried Forward
J121: Brought Forward
A122: =IF(ISBLANK(H122),"",($E$8&"."&+(COUNTA(H$7:H122)))) ->  | C122: TUNNELING BELOW BOUNDARY WALLS AND FENCING
C123: Note:
C125: The following method of passing below boundary walls and fencing will be preferred if possible, and not demolishing walls and fencing for sewers to pass below
A127: =IF(ISBLANK(H127),"",($E$8&"."&+(COUNTA(H$7:H127)))) ->  | C127: Tunneling below the following structures for sewers to pass below, including protecting the structures from damage and supporting the structures above the sewer trench and backfilling and compaction of trench complete
A128: =IF(ISBLANK(H128),"",($E$8&"."&+(COUNTA(H$7:H128)))) -> 
A129: =IF(ISBLANK(H129),"",($E$8&"."&+(COUNTA(H$7:H129)))) -> 8.15 | B129: LI | C129: .1 | D129: Perimeter fencing (all types) | H129: no | I129: 308
A130: =IF(ISBLANK(H130),"",($E$8&"."&+(COUNTA(H$7:H130)))) -> 
A131: =IF(ISBLANK(H131),"",($E$8&"."&+(COUNTA(H$7:H131)))) -> 8.16 | B131: LI | C131: .2 | D131: Perimeter precast concrete walls (all types) | H131: no | I131: 51
A132: =IF(ISBLANK(H132),"",($E$8&"."&+(COUNTA(H$7:H132)))) -> 
A133: =IF(ISBLANK(H133),"",($E$8&"."&+(COUNTA(H$7:H133)))) -> 8.17 | B133: LI | C133: .3 | D133: Perimeter brick walls (all types) | H133: no | I133: 154
A134: =IF(ISBLANK(H134),"",($E$8&"."&+(COUNTA(H$7:H134)))) -> 
C135: REINSTATEMENT OF EXISTING SERVICES
A137: =IF(ISBLANK(H137),"",($E$8&"."&+(COUNTA(H$7:H137)))) ->  | B137: SANS | C137: LIFTING EXISTING PAVING
A138: =IF(ISBLANK(H138),"",($E$8&"."&+(COUNTA(H$7:H138)))) ->  | B138: 1200 MJ
A139: =IF(ISBLANK(H139),"",($E$8&"."&+(COUNTA(H$7:H139)))) ->  | B139: 8.2.6 | C139: Lifting up existing paving blocks including neatly,
A140: =IF(ISBLANK(H140),"",($E$8&"."&+(COUNTA(H$7:H140)))) ->  | C140: stacking on site designated by the Engineer
A141: =IF(ISBLANK(H141),"",($E$8&"."&+(COUNTA(H$7:H141)))) ->  | C141: (to be re-used, and re-use measured elsewhere)
A142: =IF(ISBLANK(H142),"",($E$8&"."&+(COUNTA(H$7:H142)))) -> 
A143: =IF(ISBLANK(H143),"",($E$8&"."&+(COUNTA(H$7:H143)))) -> 8.18 | B143: LI | C143: .1 | D143: Driveway or site paving (all types) | H143: m² | I143: 10261
A144: =IF(ISBLANK(H144),"",($E$8&"."&+(COUNTA(H$7:H144)))) -> 
A145: =IF(ISBLANK(H145),"",($E$8&"."&+(COUNTA(H$7:H145)))) ->  | C145: REINSTATEMENT OF EXISTING PAVING
A146: =IF(ISBLANK(H146),"",($E$8&"."&+(COUNTA(H$7:H146)))) -> 
A147: =IF(ISBLANK(H147),"",($E$8&"."&+(COUNTA(H$7:H147)))) ->  | B147: 8.2.8 | C147: Take from stockpile on site existing paving blocks
A148: =IF(ISBLANK(H148),"",($E$8&"."&+(COUNTA(H$7:H148)))) ->  | C148: and reinstate in similar position, including levelling
A149: =IF(ISBLANK(H149),"",($E$8&"."&+(COUNTA(H$7:H149)))) ->  | C149: and compacting earthworks to 93% mod AASHTO
A150: =IF(ISBLANK(H150),"",($E$8&"."&+(COUNTA(H$7:H150)))) ->  | C150: density, supply and lay new 20mm riversand bedding
A151: =IF(ISBLANK(H151),"",($E$8&"."&+(COUNTA(H$7:H151)))) ->  | C151: and re-lay existing bricks, compacting and brooming
A152: =IF(ISBLANK(H152),"",($E$8&"."&+(COUNTA(H$7:H152)))) ->  | C152: in plastesand into joints on completion
A153: =IF(ISBLANK(H153),"",($E$8&"."&+(COUNTA(H$7:H153)))) -> 
A154: =IF(ISBLANK(H154),"",($E$8&"."&+(COUNTA(H$7:H154)))) -> 8.19 | B154: LI | C154: .1 | D154: Driveway or site paving (all types) | H154: m² | I154: 10261
A155: =IF(ISBLANK(H155),"",($E$8&"."&+(COUNTA(H$7:H155)))) -> 
A156: =IF(ISBLANK(H156),"",($E$8&"."&+(COUNTA(H$7:H156)))) ->  | C156: REINSTATEMENT OF EXISTING GARDENS
A157: =IF(ISBLANK(H157),"",($E$8&"."&+(COUNTA(H$7:H157)))) -> 
A158: =IF(ISBLANK(H158),"",($E$8&"."&+(COUNTA(H$7:H158)))) ->  | C158: The following tendered sums of money is for the reinstatement of existing gardens (hard surfacing, walls, etc excluded) on the existing housing stands complete to its original state before sewer installation started
A160: =IF(ISBLANK(H160),"",($E$8&"."&+(COUNTA(H$7:H160)))) -> 8.20 | B160: LI | C160: .1 | D160: Grass only | H160: stands | I160: 257
A161: =IF(ISBLANK(H161),"",($E$8&"."&+(COUNTA(H$7:H161)))) -> 
A162: =IF(ISBLANK(H162),"",($E$8&"."&+(COUNTA(H$7:H219)))) -> 8.30 | B162: LI | C162: .2 | D162: Grass and vegetable gardens | H162: stands | I162: 257
A163: =IF(ISBLANK(H163),"",($E$8&"."&+(COUNTA(H$7:H163)))) -> 
A164: =IF(ISBLANK(H164),"",($E$8&"."&+(COUNTA(H$7:H164)))) ->  | B164: SANS | C164: CLEAR AND GRUB SITE
A165: =IF(ISBLANK(H165),"",($E$8&"."&+(COUNTA(H$7:H165)))) ->  | B165: 1200 DB
A166: =IF(ISBLANK(H166),"",($E$8&"."&+(COUNTA(H$7:H166)))) ->  | B166: 8.3.1 | C166: (a) | D166: Clear and grub strips for (where not cleared within
A167: =IF(ISBLANK(H167),"",($E$8&"."&+(COUNTA(H$7:H167)))) ->  | D167: other clear and grub areas)
A168: =IF(ISBLANK(H168),"",($E$8&"."&+(COUNTA(H$7:H168)))) -> 
A169: =IF(ISBLANK(H169),"",($E$8&"."&+(COUNTA(H$7:H169)))) -> 8.22 | B169: LI | D169: .1 | E169: Pipeline 2m wide | H169: m | I169: 27191
J173: Carried Forward
J174: Brought Forward
A175: =IF(ISBLANK(H175),"",($E$8&"."&+(COUNTA(H$7:H175)))) -> 
C176: TRENCHING
C178: Note:
C179: Please note that dewatering of trenches must be priced under the P&G section of these bills of quantities under items 8.3.2.2.h and 8.4.2.2.h
A181: =IF(ISBLANK(H181),"",($E$8&"."&+(COUNTA(H$7:H181)))) ->  | B181: SANS | C181: EXCAVATION AND BACKFILLING
A182: =IF(ISBLANK(H182),"",($E$8&"."&+(COUNTA(H$7:H182)))) ->  | B182: 1200 DB
A183: =IF(ISBLANK(H183),"",($E$8&"."&+(COUNTA(H$7:H183)))) ->  | C183: Excavate in all materials, backfill and compact to 93%
A184: =IF(ISBLANK(H184),"",($E$8&"."&+(COUNTA(H$7:H184)))) ->  | C184: mod AASHTO density, and dispose of surplus and
A185: =IF(ISBLANK(H185),"",($E$8&"."&+(COUNTA(H$7:H185)))) ->  | C185: unsuitable materials for trenches
A186: =IF(ISBLANK(H186),"",($E$8&"."&+(COUNTA(H$7:H186)))) -> 
A187: =IF(ISBLANK(H187),"",($E$8&"."&+(COUNTA(H$7:H187)))) ->  | B187: 8.3.2 | C187: (a) | D187: .1 | E187: Up to 1m wide
A188: =IF(ISBLANK(H188),"",($E$8&"."&+(COUNTA(H$7:H188)))) -> 
A189: =IF(ISBLANK(H189),"",($E$8&"."&+(COUNTA(H$7:H189)))) -> 8.23 | B189: LI | E189: .2 | F189: Maximum 2m deep | H189: m³ | I189: =23087+((26090-23087)*0.15) -> 23537.45
A190: =IF(ISBLANK(H190),"",($E$8&"."&+(COUNTA(H$7:H190)))) -> 
A191: =IF(ISBLANK(H191),"",($E$8&"."&+(COUNTA(H$7:H191)))) ->  | B191: 8.3.2 | C191: (b) | D191: Extra over reference 8.3.2 (a) for
A192: =IF(ISBLANK(H192),"",($E$8&"."&+(COUNTA(H$7:H192)))) -> 
A193: =IF(ISBLANK(H193),"",($E$8&"."&+(COUNTA(H$7:H193)))) -> 8.24 | B193: LI | D193: .2 | E193: Hard rock excavation (controlled blasting) | H193: m³ | I193: 154
A194: =IF(ISBLANK(H194),"",($E$8&"."&+(COUNTA(H$7:H194)))) -> 
A195: =IF(ISBLANK(H195),"",($E$8&"."&+(COUNTA(H$7:H195)))) -> 8.25 | B195: LI | D195: .3 | E195: Hard rock excavation (chemical blasting) | H195: m³ | I195: 103
A197: =IF(ISBLANK(H197),"",($E$8&"."&+(COUNTA(H$7:H197)))) ->  | B197: 8.3.2 | C197: (c) | D197: Excavate unsuitable material from trench bottom,
A198: =IF(ISBLANK(H198),"",($E$8&"."&+(COUNTA(H$7:H198)))) ->  | B198: LI | D198: dispose of material, and re-fill with suitable imported
A199: =IF(ISBLANK(H199),"",($E$8&"."&+(COUNTA(H$7:H199)))) -> 8.26 | D199: material compacted to 90% mod AASHTO density | H199: m³ | I199: 51
A200: =IF(ISBLANK(H200),"",($E$8&"."&+(COUNTA(H$7:H200)))) -> 
C201: EXISTING SERVICES
A203: =IF(ISBLANK(H203),"",($E$8&"."&+(COUNTA(H$7:H203)))) ->  | C203: WORK TO EXISTING SERVICES
A204: =IF(ISBLANK(H204),"",($E$8&"."&+(COUNTA(H$7:H204)))) -> 
A205: =IF(ISBLANK(H205),"",($E$8&"."&+(COUNTA(H$7:H205)))) ->  | C205: Existing services that intersect or adjoin pipe trench
A206: =IF(ISBLANK(H206),"",($E$8&"."&+(COUNTA(H$7:H206)))) ->  | C206: excavations
A207: =IF(ISBLANK(H207),"",($E$8&"."&+(COUNTA(H$7:H207)))) -> 
A208: =IF(ISBLANK(H208),"",($E$8&"."&+(COUNTA(H$7:H208)))) ->  | B208: 8.3.5 | C208: (a) | D208: Services that intersect a trench
A209: =IF(ISBLANK(H209),"",($E$8&"."&+(COUNTA(H$7:H209)))) -> 
A210: =IF(ISBLANK(H210),"",($E$8&"."&+(COUNTA(H$7:H210)))) -> 8.27 | B210: LI | D210: .1 | E210: Electric cables | H210: no | I210: 257
A211: =IF(ISBLANK(H211),"",($E$8&"."&+(COUNTA(H$7:H211)))) -> 
A212: =IF(ISBLANK(H212),"",($E$8&"."&+(COUNTA(H$7:H212)))) -> 8.28 | B212: LI | D212: .4 | E212: Water main not exceeding 300mm dia | H212: no | I212: 257
A213: =IF(ISBLANK(H213),"",($E$8&"."&+(COUNTA(H$7:H213)))) -> 
A214: =IF(ISBLANK(H214),"",($E$8&"."&+(COUNTA(H$7:H214)))) ->  | B214: 8.3.5 | C214: (b) | D214: Services that adjoin a trench
A215: =IF(ISBLANK(H215),"",($E$8&"."&+(COUNTA(H$7:H215)))) -> 
A216: =IF(ISBLANK(H216),"",($E$8&"."&+(COUNTA(H$7:H216)))) -> 8.29 | B216: LI | D216: .1 | E216: Electric cables | H216: m | I216: 257
A218: =IF(ISBLANK(H218),"",($E$8&"."&+(COUNTA(H$7:H218)))) -> 8.30 | B218: LI | D218: .4 | E218: Water main not exceeding 300mm dia | H218: m | I218: 257
A219: =IF(ISBLANK(H219),"",($E$8&"."&+(COUNTA(H$7:H219)))) -> 
C220: BEDDING
A222: =IF(ISBLANK(H222),"",($E$8&"."&+(COUNTA(H$7:H222)))) ->  | B222: SANS | C222: BEDDING FROM TRENCH EXCAVATIONS
A223: =IF(ISBLANK(H223),"",($E$8&"."&+(COUNTA(H$7:H223)))) ->  | B223: 1200 LB
A224: =IF(ISBLANK(H224),"",($E$8&"."&+(COUNTA(H$7:H224)))) ->  | B224: 8.2.1 | C224: Provision of bedding material from trench excavations
A225: =IF(ISBLANK(H225),"",($E$8&"."&+(COUNTA(H$7:H225)))) -> 
A226: =IF(ISBLANK(H226),"",($E$8&"."&+(COUNTA(H$7:H226)))) -> 8.31 | B226: LI | C226: (a) | D226: Selected granular material | H226: m³ | I226: 359
A227: =IF(ISBLANK(H227),"",($E$8&"."&+(COUNTA(H$7:H227)))) -> 
A228: =IF(ISBLANK(H228),"",($E$8&"."&+(COUNTA(H$7:H228)))) -> 8.32 | B228: LI | C228: (b) | D228: Selected fill material | H228: m³ | I228: 257
A229: =IF(ISBLANK(H229),"",($E$8&"."&+(COUNTA(H$7:H229)))) -> 
J230: Carried Forward
J231: Brought Forward
A233: =IF(ISBLANK(H233),"",($E$8&"."&+(COUNTA(H$7:H233)))) ->  | C233: BEDDING FROM OTHER EXCAVATIONS ON SITE
A234: =IF(ISBLANK(H234),"",($E$8&"."&+(COUNTA(H$7:H234)))) -> 
A235: =IF(ISBLANK(H235),"",($E$8&"."&+(COUNTA(H$7:H235)))) ->  | B235: 8.2.2.1 | C235: Provision of bedding material by importation from
A236: =IF(ISBLANK(H236),"",($E$8&"."&+(COUNTA(H$7:H236)))) ->  | C236: other necessary excavations within the freehaul
A237: =IF(ISBLANK(H237),"",($E$8&"."&+(COUNTA(H$7:H237)))) ->  | C237: distance
A238: =IF(ISBLANK(H238),"",($E$8&"."&+(COUNTA(H$7:H238)))) -> 
A239: =IF(ISBLANK(H239),"",($E$8&"."&+(COUNTA(H$7:H239)))) -> 8.33 | B239: LI | C239: (a) | D239: Selected granular material | H239: m³ | I239: 359
A240: =IF(ISBLANK(H240),"",($E$8&"."&+(COUNTA(H$7:H240)))) -> 
A241: =IF(ISBLANK(H241),"",($E$8&"."&+(COUNTA(H$7:H241)))) -> 8.34 | B241: LI | C241: (b) | D241: Selected fill material | H241: m³ | I241: 257
A242: =IF(ISBLANK(H242),"",($E$8&"."&+(COUNTA(H$7:H242)))) -> 
A243: =IF(ISBLANK(H243),"",($E$8&"."&+(COUNTA(H$7:H243)))) ->  | C243: BEDDING FROM COMMERCIAL SOURCES
A244: =IF(ISBLANK(H244),"",($E$8&"."&+(COUNTA(H$7:H244)))) -> 
A245: =IF(ISBLANK(H245),"",($E$8&"."&+(COUNTA(H$7:H245)))) ->  | B245: 8.2.2.3 | C245: Provision of bedding material by importation from
A246: =IF(ISBLANK(H246),"",($E$8&"."&+(COUNTA(H$7:H246)))) ->  | C246: commercial sources selected by the Contractor
A247: =IF(ISBLANK(H247),"",($E$8&"."&+(COUNTA(H$7:H247)))) -> 
... 48 more rows

Sheet Sum Opt2
A1: ='A-P&G '!A1 -> Contract: RLM/OMM/0156/2024/25
A2: Part C2: Pricing Data
A3: Section C2.3: Summary of Bills
A5: Rustenburg Local Municipality
A6: APPOINTMENT OF A CONTRACTOR FOR THE REPLACEMENT OF TLHABANE AC SEWER PIPES - PHASE 2B
A7: CONTRACT RLM/OMM/0156/2024/25
A10: Summary of Bills
A12: Bill No. | B12: Description | C12: Amount ( R )
A13: 1 | B13: Preliminary and General
A14: 2 | B14: Provisional Sums and Prime Cost Items
A15: 3 | B15: Dayworks
A16: 4 | B16: Temporary Works
A17: 5 | B17: New sewers
A18: 6 | B18: Rebuild sewers
A19: 7 | B19: Existing sewers
A20: 8 | B20: Sewers on existing stands
B21: Sub-Total
A22: Provisional sum: Allowance for Contract Price Adjustment (6% of Sub-Total)
A23: Sub-Total all Portions
A24: Provisional sum: Allowance for Contingencies (10% of Sub-Total)
A25: Total Construction Cost
A26: Value Added Tax at 15%
A27: Total Project Cost
